{"text_format":"3","workbook":"xlsx","n_sheets":3,"sheets":["Sheet1","Sheet2","Sheet3"],"not_rendered":{"defined_names":1},"read":"whole","date_system":"1900"}

{"sheet":"Sheet1","index":0,"n_rows":507,"n_cols":8,"rows_kept":507}
["联考专业","学校名称","招生专业","扩招后招生计划\n\n","专业类别","授予学位","学制","教学\n地点"]
["财务管理/会计学/审计学","保定理工学院","财务管理",90,"经管","管理学",2,"校本部"]
["电气工程及其自动化/电气工程与智能控制/电子信息工程/轨道交通信号与控制/自动化","保定理工学院","电气工程及其自动化",110,"理工","工学",2,"校本部"]
["工程管理/工程造价","保定理工学院","工程管理",120,"经管","管理学",2,"校本部"]
["工商管理","保定理工学院","工商管理",110,"经管","管理学",2,"校本部"]
["财务管理/会计学/审计学","保定理工学院","会计学",90,"经管","管理学",2,"校本部"]
["车辆工程/机械电子工程/机械工程/机械设计制造及其自动化/汽车服务工程","保定理工学院","机械设计制造及其自动化",60,"理工","工学",2,"校本部"]
["计算机科学与技术/软件工程/数字媒体技术/网络工程/物联网工程","保定理工学院","计算机科学与技术",120,"理工","工学",2,"校本部"]
["城市地下空间工程/道路桥梁与渡河工程/建筑学/勘查技术与工程/历史建筑保护工程/土木工程","保定理工学院","土木工程",100,"理工","工学",2,"校本部"]
["翻译/商务英语/英语","保定理工学院","英语",100,"外语","文学",2,"校本部"]
["地理科学/人文地理与城乡规划","保定学院","地理科学",30,"理工","理学",2,"校本部"]
["车辆工程/机械电子工程/机械工程/机械设计制造及其自动化/汽车服务工程","保定学院","汽车服务工程",30,"理工","工学",2,"校本部"]
["计算机科学与技术/软件工程/数字媒体技术/网络工程/物联网工程","保定学院","软件工程",30,"理工","工学",2,"校本部"]
["翻译/商务英语/英语","保定学院","商务英语",30,"外语","文学",2,"校本部"]
["生物科学","保定学院","生物科学",40,"理工","理学",2,"校本部"]
["数学与应用数学/信息与计算科学","保定学院","数学与应用数学",10,"理工","理学",2,"校本部"]
["思想政治教育","保定学院","思想政治教育",60,"文史","法学 ",2,"校本部"]
["广播电视学/网络与新媒体/新闻学","保定学院","网络与新媒体",40,"文史","文学",2,"校本部"]
["物流管理/物流工程","保定学院","物流工程*",20,"经管","管理学",2,"校本部"]
["小学教育","保定学院","小学教育",10,"文史","教育学",2,"校本部"]
["学前教育","保定学院","学前教育",30,"文史","教育学",2,"校本部"]
["知识产权","保定学院","知识产权",30,"理工","法学 ",2,"校本部"]
["材料成型及控制工程","北华航天工业学院","材料成型及控制工程",10,"理工","工学",2,"校本部"]
["电气工程及其自动化/电气工程与智能控制/电子信息工程/轨道交通信号与控制/自动化","北华航天工业学院","电子信息工程",35,"理工","工学",2,"校本部"]
["车辆工程/机械电子工程/机械工程/机械设计制造及其自动化/汽车服务工程","北华航天工业学院","机械设计制造及其自动化",40,"理工","工学",2,"校本部"]
["电气工程及其自动化/电气工程与智能控制/电子信息工程/轨道交通信号与控制/自动化","北华航天工业学院","自动化",35,"理工","工学",2,"校本部"]
["车辆工程/机械电子工程/机械工程/机械设计制造及其自动化/汽车服务工程","北京交通大学海滨学院","车辆工程",40,"理工","工学",2,"校本部"]
["电气工程及其自动化/电气工程与智能控制/电子信息工程/轨道交通信号与控制/自动化","北京交通大学海滨学院","电气工程及其自动化",60,"理工","工学",2,"校本部"]
["工程管理/工程造价","北京交通大学海滨学院","工程管理",30,"经管","管理学",2,"校本部"]
["工商管理","北京交通大学海滨学院","工商管理",30,"经管","管理学",2,"校本部"]
["材料化学/化学工程与工艺/制药工程","北京交通大学海滨学院","化学工程与工艺",30,"理工","工学",2,"校本部"]
["车辆工程/机械电子工程/机械工程/机械设计制造及其自动化/汽车服务工程","北京交通大学海滨学院","机械工程",40,"理工","工学",2,"校本部"]
["酒店管理/旅游管理","北京交通大学海滨学院","酒店管理",30,"经管","管理学",2,"校本部"]
["计算机科学与技术/软件工程/数字媒体技术/网络工程/物联网工程","北京交通大学海滨学院","软件工程",30,"理工","工学",2,"校本部"]
["城市地下空间工程/道路桥梁与渡河工程/建筑学/勘查技术与工程/历史建筑保护工程/土木工程","北京交通大学海滨学院","土木工程",40,"理工","工学",2,"校本部"]
["计算机科学与技术/软件工程/数字媒体技术/网络工程/物联网工程","北京交通大学海滨学院","物联网工程",30,"理工","工学",2,"校本部"]
["电气工程及其自动化/电气工程与智能控制/电子信息工程/轨道交通信号与控制/自动化","北京交通大学海滨学院","自动化",40,"理工","工学",2,"校本部"]
["护理学/护理学（应用型实验班）/助产学","北京中医药大学东方学院","护理学",150,"医学","理学",2,"渤海校区"]
["财务管理/会计学/审计学","沧州师范学院","财务管理",30,"经管","管理学 ",2,"校本部"]
["电子商务/国际商务","沧州师范学院","电子商务",30,"经管","管理学",2,"校本部"]
["汉语国际教育/汉语言文学","沧州师范学院","汉语言文学",80,"文史","文学 ",2,"校本部"]
["化学/应用化学","沧州师范学院","化学",10,"理工","理学",2,"校本部"]
["计算机科学与技术/软件工程/数字媒体技术/网络工程/物联网工程","沧州师范学院","计算机科学与技术",40,"理工","工学",2,"校本部"]
["历史学","沧州师范学院","历史学",40,"文史","历史学 ",2,"校本部"]
["产品设计/服装与服饰设计/绘画/美术学","沧州师范学院","美术学",40,"艺术","文学",2,"校本部"]
["生物科学","沧州师范学院","生物科学",10,"理工","理学 ",2,"校本部"]
["市场营销","沧州师范学院","市场营销",10,"经管","管理学 ",2,"校本部"]
["数学与应用数学/信息与计算科学","沧州师范学院","数学与应用数学",30,"理工","理学 ",2,"校本部"]
["思想政治教育","沧州师范学院","思想政治教育",60,"文史","法学 ",2,"校本部"]
["社会体育指导与管理/体育教育/运动康复","沧州师范学院","体育教育",60,"体育","教育学 ",2,"校本部"]
["广播电视学/网络与新媒体/新闻学","沧州师范学院","网络与新媒体",10,"文史","文学 ",2,"校本部"]
["舞蹈编导/舞蹈表演/舞蹈学/艺术教育（舞蹈）/音乐学（舞蹈）","沧州师范学院","舞蹈编导",20,"艺术","艺术学",2,"校本部"]
["舞蹈编导/舞蹈表演/舞蹈学/艺术教育（舞蹈）/音乐学（舞蹈）","沧州师范学院","舞蹈表演",20,"艺术","艺术学",2,"校本部"]
["小学教育","沧州师范学院","小学教育",80,"文史","教育学 ",2,"校本部"]
["学前教育","沧州师范学院","学前教育",40,"文史","教育学 ",2,"校本部"]
["音乐表演（器乐）/音乐学（器乐）","沧州师范学院","音乐学（器乐）",5,"艺术","艺术学 ",2,"校本部"]
["艺术教育（声乐）/音乐表演（声乐）/音乐学（声乐）","沧州师范学院","音乐学（声乐）",45,"艺术","艺术学",2,"校本部"]
["翻译/商务英语/英语","沧州师范学院","英语",40,"外语","文学 ",2,"校本部"]
["护理学/护理学（应用型实验班）/助产学","承德医学院","护理学",190,"医学","理学 ",2,"校本部"]
["临床医学","承德医学院","临床医学",155,"医学","医学 ",3,"校本部"]
["针灸推拿学","承德医学院","针灸推拿学",10,"医学","医学 ",3,"校本部"]
["中医学","承德医学院","中医学",5,"医学","医学 ",3,"校本部"]
["播音与主持艺术","邯郸学院","播音与主持艺术",40,"艺术","艺术学",2,"校本部"]
["材料化学/化学工程与工艺/制药工程","邯郸学院","材料化学",30,"理工","工学",2,"校本部"]
["电气工程及其自动化/电气工程与智能控制/电子信息工程/轨道交通信号与控制/自动化","邯郸学院","电气工程及其自动化",70,"理工","工学",2,"校本部"]
["电气工程及其自动化/电气工程与智能控制/电子信息工程/轨道交通信号与控制/自动化","邯郸学院","电子信息工程",40,"理工","工学",2,"校本部"]
["动画","邯郸学院","动画",15,"艺术","艺术学",2,"校本部"]
["汉语国际教育/汉语言文学","邯郸学院","汉语国际教育",155,"文史","文学",2,"校本部"]
["化学/应用化学","邯郸学院","化学",30,"理工","理学",2,"校本部"]
["材料化学/化学工程与工艺/制药工程","邯郸学院","化学工程与工艺",30,"理工","工学",2,"校本部"]
["环境设计","邯郸学院","环境设计",30,"艺术","艺术学",2,"校本部"]
["车辆工程/机械电子工程/机械工程/机械设计制造及其自动化/汽车服务工程","邯郸学院","机械设计制造及其自动化",60,"理工","工学",2,"校本部"]
["计算机科学与技术/软件工程/数字媒体技术/网络工程/物联网工程","邯郸学院","计算机科学与技术",30,"理工","工学",2,"校本部"]
["历史学","邯郸学院","历史学",40,"文史","历史学 ",2,"校本部"]
["酒店管理/旅游管理","邯郸学院","旅游管理",120,"经管","管理学",2,"校本部"]
["产品设计/服装与服饰设计/绘画/美术学","邯郸学院","美术学",80,"艺术","艺术学",2,"校本部"]
["秘书学","邯郸学院","秘书学",120,"文史","文学",2,"校本部"]
["计算机科学与技术/软件工程/数字媒体技术/网络工程/物联网工程","邯郸学院","软件工程",80,"理工","工学",2,"校本部"]
["社会体育指导与管理/体育教育/运动康复","邯郸学院","社会体育指导与管理",30,"体育","教育学",2,"校本部"]
["食品科学与工程","邯郸学院","食品科学与工程",60,"理工","工学",2,"校本部"]
["视觉传达设计","邯郸学院","视觉传达设计",30,"艺术","艺术学",2,"校本部"]
["思想政治教育","邯郸学院","思想政治教育",80,"文史","法学",2,"校本部"]
["社会体育指导与管理/体育教育/运动康复","邯郸学院","体育教育（太极拳方向）",30,"体育","教育学",2,"校本部"]
["计算机科学与技术/软件工程/数字媒体技术/网络工程/物联网工程","邯郸学院","网络工程",40,"理工","工学",2,"校本部"]
["舞蹈编导/舞蹈表演/舞蹈学/艺术教育（舞蹈）/音乐学（舞蹈）","邯郸学院","舞蹈表演",40,"艺术","艺术学",2,"校本部"]
["学前教育","邯郸学院","学前教育",90,"文史","教育学",2,"校本部"]
["音乐表演（器乐）/音乐学（器乐）","邯郸学院","音乐学（器乐）",30,"艺术","艺术学",2,"校本部"]
["艺术教育（声乐）/音乐表演（声乐）/音乐学（声乐）","邯郸学院","音乐学（声乐）",60,"艺术","艺术学",2,"校本部"]
["应用心理学","邯郸学院","应用心理学",40,"文史","理学 ",2,"校本部"]
["财务管理/会计学/审计学","河北北方学院","财务管理",40,"经管","管理学",2,"东校区"]
["动物医学","河北北方学院","动物医学",40,"农学","农学",2,"南校区"]
["汉语国际教育/汉语言文学","河北北方学院","汉语言文学",60,"文史","文学",2,"东校区"]
["护理学/护理学（应用型实验班）/助产学","河北北方学院","护理学",120,"医学","理学",2,"宣化校区"]
["计算机科学与技术/软件工程/数字媒体技术/网络工程/物联网工程","河北北方学院","计算机科学与技术",60,"理工","工学",2,"东校区"]
["酒店管理/旅游管理","河北北方学院","酒店管理",40,"经管","管理学",2,"校本部"]
["秘书学","河北北方学院","秘书学",35,"文史","文学 ",2,"东校区"]
["翻译/商务英语/英语","河北北方学院","商务英语",30,"英语","文学",2,"东校区"]
["食品科学与工程","河北北方学院","食品科学与工程",20,"理工","工学",2,"南校区"]
["市场营销","河北北方学院","市场营销",60,"经管","管理学",2,"东校区"]
["数学与应用数学/信息与计算科学","河北北方学院","数学与应用数学",20,"理工","理学",2,"校本部"]
["思想政治教育","河北北方学院","思想政治教育",40,"文史","法学",2,"校本部"]
["医学检验技术","河北北方学院","医学检验技术",80,"医学","理学",2,"校本部"]
["翻译/商务英语/英语","河北北方学院","英语",60,"外语","文学",2,"东校区"]
["应用心理学","河北北方学院","应用心理学",40,"理工","教育学",2,"校本部"]
["表演","河北传媒学院","表演",50,"艺术","艺术学",2,"校本部"]
["播音与主持艺术","河北传媒学院","播音与主持艺术",60,"艺术","艺术学",2,"校本部"]
["电子商务/国际商务","河北传媒学院","电子商务",30,"经管","管理学",2,"校本部"]
["动画","河北传媒学院","动画",30,"艺术","艺术学",2,"校本部"]
["广播电视编导/摄影","河北传媒学院","广播电视编导",55,"艺术","艺术学",2,"校本部"]
["广播电视学/网络与新媒体/新闻学","河北传媒学院","广播电视学",80,"文史","文学",2,"校本部"]
["广告学","河北传媒学院","广告学",70,"文史","文学",2,"校本部"]
["环境设计","河北传媒学院","环境设计",60,"艺术","艺术学",2,"校本部"]
["计算机科学与技术/软件工程/数字媒体技术/网络工程/物联网工程","河北传媒学院","计算机科学与技术",60,"理工","工学",2,"校本部"]
["广播电视编导/摄影","河北传媒学院","摄影",55,"艺术","艺术学",2,"校本部"]
["视觉传达设计","河北传媒学院","视觉传达设计",30,"艺术","艺术学",2,"校本部"]
["计算机科学与技术/软件工程/数字媒体技术/网络工程/物联网工程","河北传媒学院","网络工程",80,"理工","工学",2,"校本部"]
["舞蹈编导/舞蹈表演/舞蹈学/艺术教育（舞蹈）/音乐学（舞蹈）","河北传媒学院","舞蹈编导",20,"艺术","艺术学",2,"校本部"]
["舞蹈编导/舞蹈表演/舞蹈学/艺术教育（舞蹈）/音乐学（舞蹈）","河北传媒学院","舞蹈表演",30,"艺术","艺术学",2,"校本部"]
["广播电视学/网络与新媒体/新闻学","河北传媒学院","新闻学",90,"文史","文学",2,"校本部"]
["音乐表演（器乐）/音乐学（器乐）","河北传媒学院","音乐表演（器乐）",20,"艺术","艺术学",2,"校本部"]
["艺术教育（声乐）/音乐表演（声乐）/音乐学（声乐）","河北传媒学院","音乐表演（声乐）",80,"艺术","艺术学",2,"校本部"]
["财务管理/会计学/审计学","河北东方学院","财务管理",50,"经管","管理学",2,"校本部"]
["护理学/护理学（应用型实验班）/助产学","河北东方学院","护理学",510,"医学","理学",2,"校本部"]
["环境设计","河北东方学院","环境设计",60,"艺术","艺术学",2,"校本部"]
["车辆工程/机械电子工程/机械工程/机械设计制造及其自动化/汽车服务工程","河北东方学院","汽车服务工程",30,"理工","工学",2,"校本部"]
["财务管理/会计学/审计学","河北东方学院","审计学",100,"经管","管理学",2,"校本部"]
["计算机科学与技术/软件工程/数字媒体技术/网络工程/物联网工程","河北东方学院","物联网工程",100,"理工","工学 ",2,"校本部"]
["医学影像技术","河北东方学院","医学影像技术",150,"医学","理学 ",2,"校本部"]
["车辆工程/机械电子工程/机械工程/机械设计制造及其自动化/汽车服务工程","河北工程大学科信学院","车辆工程",35,"理工","工学",2,"校本部"]
["电气工程及其自动化/电气工程与智能控制/电子信息工程/轨道交通信号与控制/自动化","河北工程大学科信学院","电子信息工程",35,"理工","工学",2,"校本部"]
["工程管理/工程造价","河北工程大学科信学院","工程管理",35,"理工","工学",2,"校本部"]
["工商管理","河北工程大学科信学院","工商管理",30,"经管","管理学",2,"校本部"]
["国际经济与贸易","河北工程大学科信学院","国际经济与贸易",35,"理工","工学",2,"校本部"]
["计算机科学与技术/软件工程/数字媒体技术/网络工程/物联网工程","河北工程大学科信学院","计算机科学与技术",25,"理工","工学",2,"校本部"]
["食品科学与工程","河北工程大学科信学院","食品科学与工程",35,"理工","工学",2,"校本部"]
["水利水电工程","河北工程大学科信学院","水利水电工程",30,"理工","工学",2,"校本部"]
["城市地下空间工程/道路桥梁与渡河工程/建筑学/勘查技术与工程/历史建筑保护工程/土木工程","河北工程大学科信学院","土木工程",30,"理工","工学",2,"校本部"]
["电气工程及其自动化/电气工程与智能控制/电子信息工程/轨道交通信号与控制/自动化","河北工程大学科信学院","自动化",60,"理工","工学",2,"校本部"]
["财务管理/会计学/审计学","河北工程技术学院","财务管理",40,"经管","管理学",2,"校本部"]
["电子商务/国际商务","河北工程技术学院","电子商务",40,"经管","工学 ",2,"校本部"]
["电气工程及其自动化/电气工程与智能控制/电子信息工程/轨道交通信号与控制/自动化","河北工程技术学院","电子信息工程",60,"理工","工学",2,"校本部"]
["风景园林/园林","河北工程技术学院","风景园林",40,"农学","工学",2,"校本部"]
["工程管理/工程造价","河北工程技术学院","工程管理",90,"经管","管理学",2,"校本部"]
["工程管理/工程造价","河北工程技术学院","工程造价",70,"经管","工学",2,"校本部"]
["国际经济与贸易","河北工程技术学院","国际经济与贸易",50,"经管","经济学",2,"校本部"]
["城市地下空间工程/道路桥梁与渡河工程/建筑学/勘查技术与工程/历史建筑保护工程/土木工程","河北工程技术学院","建筑学",50,"理工","工学",2,"校本部"]
["金融工程/金融学/投资学","河北工程技术学院","金融工程",10,"经管","经济学",2,"校本部"]
["计算机科学与技术/软件工程/数字媒体技术/网络工程/物联网工程","河北工程技术学院","软件工程",105,"理工","工学",2,"校本部"]
["财务管理/会计学/审计学","河北工程技术学院","审计学",40,"经管","管理学",2,"校本部"]
["市场营销","河北工程技术学院","市场营销",110,"经管","管理学",2,"校本部"]
["城市地下空间工程/道路桥梁与渡河工程/建筑学/勘查技术与工程/历史建筑保护工程/土木工程","河北工程技术学院","土木工程",60,"理工","工学",2,"校本部"]
["计算机科学与技术/软件工程/数字媒体技术/网络工程/物联网工程","河北工程技术学院","网络工程",90,"理工","工学",2,"校本部"]
["广播电视学/网络与新媒体/新闻学","河北工程技术学院","网络与新媒体",105,"文史","文学",2,"校本部"]
["计算机科学与技术/软件工程/数字媒体技术/网络工程/物联网工程","河北工程技术学院","物联网工程",90,"理工","工学",2,"校本部"]
["环境工程/环境科学/环境生态工程/环保设备工程","河北环境工程学院","环保设备工程*",75,"理工","工学",2,"校本部"]
["环境工程/环境科学/环境生态工程/环保设备工程","河北环境工程学院","环境工程",80,"理工","工学",2,"校本部"]
["环境工程/环境科学/环境生态工程/环保设备工程","河北环境工程学院","环境科学",80,"理工","理学",2,"校本部"]
["环境设计","河北环境工程学院","环境设计",40,"艺术","艺术学",2,"校本部"]
["环境工程/环境科学/环境生态工程/环保设备工程","河北环境工程学院","环境生态工程",70,"理工","工学",2,"校本部"]
["计算机科学与技术/软件工程/数字媒体技术/网络工程/物联网工程","河北环境工程学院","软件工程",70,"理工","工学",2,"校本部"]
["社会体育指导与管理/体育教育/运动康复","河北环境工程学院","社会体育指导与管理",105,"体育","教育学",2,"校本部"]
["市场营销","河北环境工程学院","市场营销",75,"经管","管理学",2,"校本部"]
["计算机科学与技术/软件工程/数字媒体技术/网络工程/物联网工程","河北环境工程学院","物联网工程",70,"理工","工学",2,"校本部"]
["物流管理/物流工程","河北环境工程学院","物流管理",75,"经管","管理学",2,"校本部"]
["风景园林/园林","河北环境工程学院","园林",105,"农学","农学",2,"校本部"]
["车辆工程/机械电子工程/机械工程/机械设计制造及其自动化/汽车服务工程","河北建筑工程学院","车辆工程",25,"理工","工学",2,"校本部"]
["城市地下空间工程/道路桥梁与渡河工程/建筑学/勘查技术与工程/历史建筑保护工程/土木工程","河北建筑工程学院","道路桥梁与渡河工程",80,"理工","工学 ",2,"校本部"]
["电气工程及其自动化/电气工程与智能控制/电子信息工程/轨道交通信号与控制/自动化","河北建筑工程学院","电气工程及其自动化",40,"理工","工学",2,"校本部"]
["电气工程及其自动化/电气工程与智能控制/电子信息工程/轨道交通信号与控制/自动化","河北建筑工程学院","电子信息工程",40,"理工","工学",2,"校本部"]
["环境工程/环境科学/环境生态工程/环保设备工程","河北建筑工程学院","环境工程",45,"理工","工学",2,"校本部"]
["车辆工程/机械电子工程/机械工程/机械设计制造及其自动化/汽车服务工程","河北建筑工程学院","机械电子工程",45,"理工","工学 ",2,"校本部"]
["车辆工程/机械电子工程/机械工程/机械设计制造及其自动化/汽车服务工程","河北建筑工程学院","机械设计制造及其自动化",45,"理工","工学",2,"校本部"]
["计算机科学与技术/软件工程/数字媒体技术/网络工程/物联网工程","河北建筑工程学院","计算机科学与技术",80,"理工","工学",2,"校本部"]
["能源与动力工程","河北建筑工程学院","能源与动力工程",30,"理工","工学",2,"校本部"]
["城市地下空间工程/道路桥梁与渡河工程/建筑学/勘查技术与工程/历史建筑保护工程/土木工程","河北建筑工程学院","土木工程",80,"理工","工学",2,"校本部"]
["计算机科学与技术/软件工程/数字媒体技术/网络工程/物联网工程","河北建筑工程学院","网络工程",40,"理工","工学",2,"校本部"]
["计算机科学与技术/软件工程/数字媒体技术/网络工程/物联网工程","河北建筑工程学院","物联网工程",55,"理工","工学 ",2,"校本部"]
["数学与应用数学/信息与计算科学","河北建筑工程学院","信息与计算科学",20,"理工","理学",2,"校本部"]
["翻译/商务英语/英语","河北建筑工程学院","英语",80,"外语","文学",2,"校本部"]
["保险学","河北金融学院","保险学",100,"经管","经济学",2,"校本部"]
["财务管理/会计学/审计学","河北金融学院","财务管理",50,"经管","管理学",2,"校本部"]
["工商管理","河北金融学院","工商管理",50,"经管","管理学",2,"校本部"]
["国际经济与贸易","河北金融学院","国际经济与贸易",50,"经管","经济学",2,"校本部"]
["计算机科学与技术/软件工程/数字媒体技术/网络工程/物联网工程","河北金融学院","计算机科学与技术",50,"理工","工学",2,"校本部"]
["市场营销","河北金融学院","市场营销",50,"经管","管理学",2,"校本部"]
["金融工程/金融学/投资学","河北金融学院","投资学",50,"经管","经济学",2,"校本部"]
["财务管理/会计学/审计学","河北经贸大学经济管理学院","财务管理",40,"经管","管理学",2,"校本部"]
["财务管理/会计学/审计学","河北经贸大学经济管理学院","会计学",90,"经管","管理学",2,"校本部"]
["计算机科学与技术/软件工程/数字媒体技术/网络工程/物联网工程","河北经贸大学经济管理学院","计算机科学与技术",90,"理工","工学",2,"校本部"]
["财务管理/会计学/审计学","河北经贸大学经济管理学院","审计学",40,"经管","管理学",2,"校本部"]
["市场营销","河北经贸大学经济管理学院","市场营销",40,"经管","管理学",2,"校本部"]
["工商管理","河北科技大学","工商管理",60,"经管","管理学",2,"校本部"]
["材料化学/化学工程与工艺/制药工程","河北科技大学","化学工程与工艺",20,"理工","工学 ",2,"校本部"]
["车辆工程/机械电子工程/机械工程/机械设计制造及其自动化/汽车服务工程","河北科技大学","机械电子工程",40,"理工","工学 ",2,"校本部"]
["车辆工程/机械电子工程/机械工程/机械设计制造及其自动化/汽车服务工程","河北科技大学","机械设计制造及其自动化",40,"理工","工学 ",2,"校本部"]
["市场营销","河北科技大学","市场营销",45,"经管","管理学",2,"校本部"]
["城市地下空间工程/道路桥梁与渡河工程/建筑学/勘查技术与工程/历史建筑保护工程/土木工程","河北科技大学","土木工程",70,"理工","工学 ",2,"校本部"]
["化学/应用化学","河北科技大学","应用化学",45,"理工","理学 ",2,"校本部"]
["电气工程及其自动化/电气工程与智能控制/电子信息工程/轨道交通信号与控制/自动化","河北科技大学","自动化",40,"理工","工学 ",2,"校本部"]
["工商管理","河北科技大学理工学院","工商管理",35,"经管","管理学",2,"河北科技大学校区"]
["翻译/商务英语/英语","河北科技大学理工学院","商务英语",25,"外语","文学",2,"河北科技大学校区"]
["市场营销","河北科技大学理工学院","市场营销",35,"经管","管理学",2,"河北科技大学校区"]
["计算机科学与技术/软件工程/数字媒体技术/网络工程/物联网工程","河北科技大学理工学院","网络工程",60,"理工","工学",2,"河北科技大学校区"]
["翻译/商务英语/英语","河北科技大学理工学院","英语",25,"外语","文学",2,"河北科技大学校区"]
["法学","河北科技师范学院","法学",60,"文史","法学",2,"校本部"]
["工程管理/工程造价","河北科技师范学院","工程管理",30,"经管","管理学 ",2,"校本部"]
["社会体育指导与管理/体育教育/运动康复","河北科技师范学院","运动康复",15,"体育","教育学",2,"校本部"]
["播音与主持艺术","河北科技学院","播音与主持艺术",10,"艺术","艺术学",2,"校本部"]
["财务管理/会计学/审计学","河北科技学院","财务管理",60,"经管","管理学",2,"校本部"]
["车辆工程/机械电子工程/机械工程/机械设计制造及其自动化/汽车服务工程","河北科技学院","车辆工程",60,"理工","工学",2,"校本部"]
["电气工程及其自动化/电气工程与智能控制/电子信息工程/轨道交通信号与控制/自动化","河北科技学院","电气工程及其自动化",65,"理工","工学",2,"校本部"]
["工程管理/工程造价","河北科技学院","工程管理",80,"经管","管理学",2,"校本部"]
["工程管理/工程造价","河北科技学院","工程造价",80,"经管","管理学 ",2,"校本部"]
["广播电视编导/摄影","河北科技学院","广播电视编导",30,"艺术","艺术学",2,"校本部"]
["环境设计","河北科技学院","环境设计",30,"艺术","艺术学",2,"校本部"]
["财务管理/会计学/审计学","河北科技学院","会计学",60,"经管","管理学",2,"校本部"]
["车辆工程/机械电子工程/机械工程/机械设计制造及其自动化/汽车服务工程","河北科技学院","机械电子工程",50,"理工","工学",2,"校本部"]
["车辆工程/机械电子工程/机械工程/机械设计制造及其自动化/汽车服务工程","河北科技学院","机械设计制造及其自动化",60,"理工","工学",2,"校本部"]
["计算机科学与技术/软件工程/数字媒体技术/网络工程/物联网工程","河北科技学院","计算机科学与技术",120,"理工","工学",2,"校本部"]
["车辆工程/机械电子工程/机械工程/机械设计制造及其自动化/汽车服务工程","河北科技学院","汽车服务工程",60,"理工","工学",2,"校本部"]
["计算机科学与技术/软件工程/数字媒体技术/网络工程/物联网工程","河北科技学院","软件工程",115,"理工","工学",2,"校本部"]
["视觉传达设计","河北科技学院","视觉传达设计",25,"艺术","艺术学",2,"校本部"]
["金融工程/金融学/投资学","河北科技学院","投资学",20,"经管","经济学",2,"校本部"]
["城市地下空间工程/道路桥梁与渡河工程/建筑学/勘查技术与工程/历史建筑保护工程/土木工程","河北科技学院","土木工程",65,"理工","工学",2,"校本部"]
["舞蹈编导/舞蹈表演/舞蹈学/艺术教育（舞蹈）/音乐学（舞蹈）","河北科技学院","舞蹈表演",20,"艺术","艺术学",2,"校本部"]
["物流管理/物流工程","河北科技学院","物流管理",60,"经管","管理学",2,"校本部"]
["播音与主持艺术","河北美术学院","播音与主持艺术",55,"艺术","艺术学",2,"校本部"]
["产品设计/服装与服饰设计/绘画/美术学","河北美术学院","产品设计",30,"艺术","艺术学",2,"校本部"]
["雕塑","河北美术学院","雕塑",35,"艺术","艺术学",2,"校本部"]
["动画","河北美术学院","动画",90,"艺术","艺术学",2,"校本部"]
["产品设计/服装与服饰设计/绘画/美术学","河北美术学院","服装与服饰设计",40,"艺术","艺术学",2,"校本部"]
["广播电视编导/摄影","河北美术学院","广播电视编导",100,"艺术","艺术学",2,"校本部"]
["环境设计","河北美术学院","环境设计",180,"艺术","艺术学",2,"校本部"]
["产品设计/服装与服饰设计/绘画/美术学","河北美术学院","绘画",70,"艺术","艺术学",2,"校本部"]
["产品设计/服装与服饰设计/绘画/美术学","河北美术学院","美术学",170,"艺术","艺术学",2,"校本部"]
["视觉传达设计","河北美术学院","视觉传达设计",100,"艺术","艺术学",2,"校本部"]
["书法学","河北美术学院","书法学",180,"艺术","艺术学",2,"校本部"]
["舞蹈编导/舞蹈表演/舞蹈学/艺术教育（舞蹈）/音乐学（舞蹈）","河北民族师范学院","舞蹈学",10,"艺术","艺术学",2,"校本部"]
["小学教育","河北民族师范学院","小学教育",50,"文史","教育学",2,"校本部"]
["学前教育","河北民族师范学院","学前教育",50,"文史","教育学",2,"校本部"]
["酒店管理/旅游管理","河北民族师范学院","旅游管理",40,"文史","管理学",2,"校本部"]
["动物医学","河北农业大学","动物医学",50,"农学","农学",2,"校本部"]
["财务管理/会计学/审计学","河北农业大学","会计学",80,"经管","管理学",2,"校本部"]
["秘书学","河北农业大学","秘书学",70,"文史","文学",2,"校本部"]
["市场营销","河北农业大学","市场营销",90,"经管","管理学",2,"校本部"]
["水产养殖学","河北农业大学","水产养殖学",30,"农学","农学",2,"秦皇岛校区"]
["翻译/商务英语/英语","河北农业大学","英语",80,"外语","文学",2,"校本部"]
["计算机科学与技术/软件工程/数字媒体技术/网络工程/物联网工程","河北师范大学","计算机科学与技术",100,"理工","工学",2,"河北师大附属民族学院"]
["学前教育","河北师范大学","学前教育",80,"文史","教育学",2,"校本部"]
["翻译/商务英语/英语","河北师范大学","英语",100,"外语","文学",2,"河北师大附属民族学院"]
["汉语国际教育/汉语言文学","河北师范大学汇华学院","汉语言文学",120,"文史","文学",2,"校本部"]
["思想政治教育","河北师范大学汇华学院","思想政治教育",60,"文史","法学",2,"校本部"]
["财务管理/会计学/审计学","河北水利电力学院","财务管理",70,"经管","管理学",2,"校本部"]
["测绘工程","河北水利电力学院","测绘工程",20,"理工","工学",2,"校本部"]
["城市地下空间工程/道路桥梁与渡河工程/建筑学/勘查技术与工程/历史建筑保护工程/土木工程","河北水利电力学院","城市地下空间工程",60,"理工","工学",2,"校本部"]
["城市地下空间工程/道路桥梁与渡河工程/建筑学/勘查技术与工程/历史建筑保护工程/土木工程","河北水利电力学院","道路桥梁与渡河工程",70,"理工","工学",2,"校本部"]
["电气工程及其自动化/电气工程与智能控制/电子信息工程/轨道交通信号与控制/自动化","河北水利电力学院","电气工程及其自动化",90,"理工","工学",2,"校本部"]
["电气工程及其自动化/电气工程与智能控制/电子信息工程/轨道交通信号与控制/自动化","河北水利电力学院","电气工程与智能控制",90,"理工","工学",2,"校本部"]
["电子商务/国际商务","河北水利电力学院","国际商务",30,"经管","管理学",2,"校本部"]
["车辆工程/机械电子工程/机械工程/机械设计制造及其自动化/汽车服务工程","河北水利电力学院","机械电子工程",60,"理工","工学",2,"校本部"]
["城市地下空间工程/道路桥梁与渡河工程/建筑学/勘查技术与工程/历史建筑保护工程/土木工程","河北水利电力学院","勘查技术与工程",70,"理工","工学",2,"校本部"]
["计算机科学与技术/软件工程/数字媒体技术/网络工程/物联网工程","河北水利电力学院","软件工程",90,"理工","工学",2,"校本部"]
["计算机科学与技术/软件工程/数字媒体技术/网络工程/物联网工程","河北水利电力学院","数字媒体技术",70,"理工","工学",2,"校本部"]
["水利水电工程","河北水利电力学院","水利水电工程",70,"理工","工学",2,"校本部"]
["电气工程及其自动化/电气工程与智能控制/电子信息工程/轨道交通信号与控制/自动化","河北水利电力学院","自动化",60,"理工","工学",2,"校本部"]
["社会体育指导与管理/体育教育/运动康复","河北体育学院","体育教育",100,"体育","教育学 ",2,"校本部"]
["阿拉伯语","河北外国语学院","阿拉伯语",22,"外语","文学",2,"校本部"]
["播音与主持艺术","河北外国语学院","播音与主持艺术",5,"艺术","艺术学",2,"校本部"]
["财务管理/会计学/审计学","河北外国语学院","财务管理",40,"经管","管理学",2,"校本部"]
["朝鲜语","河北外国语学院","朝鲜语",20,"外语","文学",2,"校本部"]
["德语","河北外国语学院","德语",18,"外语","文学",2,"校本部"]
["电子商务/国际商务","河北外国语学院","电子商务",10,"经管","管理学",2,"校本部"]
["俄语","河北外国语学院","俄语",15,"外语","文学",2,"校本部"]
["法语","河北外国语学院","法语",22,"外语","文学",2,"校本部"]
["翻译/商务英语/英语","河北外国语学院","翻译",30,"外语","文学",2,"校本部"]
["工程管理/工程造价","河北外国语学院","工程造价",55,"经管","管理学",2,"校本部"]
["国际经济与贸易","河北外国语学院","国际经济与贸易",20,"经管","经济学",2,"校本部"]
["汉语国际教育/汉语言文学","河北外国语学院","汉语国际教育",50,"文史","文学",2,"校本部"]
["护理学/护理学（应用型实验班）/助产学","河北外国语学院","护理学",70,"医学","理学",2,"校本部"]
["城市地下空间工程/道路桥梁与渡河工程/建筑学/勘查技术与工程/历史建筑保护工程/土木工程","河北外国语学院","建筑学",40,"理工","工学",2,"校本部"]
["金融工程/金融学/投资学","河北外国语学院","金融工程",20,"经管","经济学",2,"校本部"]
["康复治疗学","河北外国语学院","康复治疗学",35,"医学","理学",2,"校本部"]
["葡萄牙语","河北外国语学院","葡萄牙语",5,"外语","文学",2,"校本部"]
["日语","河北外国语学院","日语",56,"外语","文学",2,"校本部"]
["计算机科学与技术/软件工程/数字媒体技术/网络工程/物联网工程","河北外国语学院","软件工程",30,"理工","工学",2,"校本部"]
["翻译/商务英语/英语","河北外国语学院","商务英语",30,"外语","文学",2,"校本部"]
["财务管理/会计学/审计学","河北外国语学院","审计学",20,"经管","管理学",2,"校本部"]
["城市地下空间工程/道路桥梁与渡河工程/建筑学/勘查技术与工程/历史建筑保护工程/土木工程","河北外国语学院","土木工程",50,"理工","工学",2,"校本部"]
["计算机科学与技术/软件工程/数字媒体技术/网络工程/物联网工程","河北外国语学院","网络工程",30,"理工","工学",2,"校本部"]
["广播电视学/网络与新媒体/新闻学","河北外国语学院","网络与新媒体",20,"文史","文学",2,"校本部"]
["西班牙语","河北外国语学院","西班牙语",35,"外语","文学",2,"校本部"]
["小学教育","河北外国语学院","小学教育",130,"文史","教育学",2,"校本部"]
["学前教育","河北外国语学院","学前教育",92,"文史","教育学",2,"校本部"]
["艺术教育（声乐）/音乐表演（声乐）/音乐学（声乐）","河北外国语学院","艺术教育（声乐）",15,"艺术","艺术学",2,"校本部"]
["舞蹈编导/舞蹈表演/舞蹈学/艺术教育（舞蹈）/音乐学（舞蹈）","河北外国语学院","艺术教育（舞蹈）",5,"艺术","艺术学",2,"校本部"]
["意大利语","河北外国语学院","意大利语",5,"外语","文学",2,"校本部"]
["艺术教育（声乐）/音乐表演（声乐）/音乐学（声乐）","河北外国语学院","音乐表演（声乐）",15,"艺术","艺术学",2,"校本部"]
["翻译/商务英语/英语","河北外国语学院","英语",40,"外语","文学",2,"校本部"]
["护理学/护理学（应用型实验班）/助产学","河北医科大学","护理学",90,"医学","理学",2,"沧州医专校区"]
["护理学/护理学（应用型实验班）/助产学","河北医科大学","护理学（应用型实验班）",30,"医学","理学",2,"河北女子职技校区"]
["康复治疗学","河北医科大学","康复治疗学",150,"医学","理学",2,"邢台医专校区"]
["临床医学","河北医科大学","临床医学",80,"医学","医学",3,"沧州医专校区"]
["药学","河北医科大学","药学",40,"医学","理学",2,"沧州医专校区"]
["医学检验技术","河北医科大学","医学检验技术",30,"医学","理学",2,"沧州医专校区"]
["医学影像技术","河北医科大学","医学影像技术",30,"医学","理学",2,"沧州医专校区"]
["护理学/护理学（应用型实验班）/助产学","河北医科大学","助产学",100,"医学","理学",2,"邢台医专校区"]
["针灸推拿学","河北中医学院","针灸推拿学",10,"医学","医学 ",3,"杏苑校区"]
["中医学","河北中医学院","中医学",40,"医学","医学 ",3,"杏苑校区"]
["电气工程及其自动化/电气工程与智能控制/电子信息工程/轨道交通信号与控制/自动化","衡水学院","电子信息工程",60,"理工","工学",2,"校本部"]
["广播电视学/网络与新媒体/新闻学","衡水学院","广播电视学",45,"文史","文学",2,"校本部"]
["广告学","衡水学院","广告学",45,"文史","文学",2,"校本部"]
["汉语国际教育/汉语言文学","衡水学院","汉语言文学",120,"文史","文学",2,"校本部"]
["环境设计","衡水学院","环境设计",30,"艺术","艺术学",2,"校本部"]
["环境工程/环境科学/环境生态工程/环保设备工程","衡水学院","环境生态工程",40,"理工","工学",2,"校本部"]
["计算机科学与技术/软件工程/数字媒体技术/网络工程/物联网工程","衡水学院","计算机科学与技术",40,"理工","工学",2,"校本部"]
["产品设计/服装与服饰设计/绘画/美术学","衡水学院","美术学",10,"艺术","艺术学",2,"校本部"]
["社会体育指导与管理/体育教育/运动康复","衡水学院","社会体育指导与管理",40,"体育","教育学",2,"校本部"]
["生物科学","衡水学院","生物科学",40,"理工","理学",2,"校本部"]
["视觉传达设计","衡水学院","视觉传达设计",30,"艺术","艺术学",2,"校本部"]
["数学与应用数学/信息与计算科学","衡水学院","数学与应用数学",20,"理工","理学",2,"校本部"]
["思想政治教育","衡水学院","思想政治教育",75,"文史","法学",2,"校本部"]
["社会体育指导与管理/体育教育/运动康复","衡水学院","体育教育",40,"体育","教育学",2,"校本部"]
["舞蹈编导/舞蹈表演/舞蹈学/艺术教育（舞蹈）/音乐学（舞蹈）","衡水学院","舞蹈学",20,"艺术","艺术学",2,"校本部"]
["学前教育","衡水学院","学前教育",100,"文史","教育学",2,"校本部"]
["音乐表演（器乐）/音乐学（器乐）","衡水学院","音乐学（器乐）",10,"艺术","艺术学",2,"校本部"]
["艺术教育（声乐）/音乐表演（声乐）/音乐学（声乐）","衡水学院","音乐学（声乐）",25,"艺术","艺术学",2,"校本部"]
["翻译/商务英语/英语","衡水学院","英语",60,"外语","文学",2,"校本部"]
["风景园林/园林","衡水学院","园林",40,"农学","农学",2,"校本部"]
["材料成型及控制工程","华北理工大学","材料成型及控制工程",10,"理工","工学",2,"曹妃甸校区"]
["材料化学/化学工程与工艺/制药工程","华北理工大学","材料化学",20,"理工","理学",2,"曹妃甸校区"]
["测绘工程","华北理工大学","测绘工程",15,"理工","工学",2,"曹妃甸校区"]
["法学","华北理工大学","法学",120,"文史","法学",2,"曹妃甸校区"]
["工程管理/工程造价","华北理工大学","工程管理",120,"经管","管理学",2,"曹妃甸校区"]
["工商管理","华北理工大学","工商管理",120,"经管","管理学",2,"曹妃甸校区"]
["护理学/护理学（应用型实验班）/助产学","华北理工大学","护理学",95,"医学","理学",2,"曹妃甸校区"]
["环境工程/环境科学/环境生态工程/环保设备工程","华北理工大学","环境工程",120,"理工","工学",2,"曹妃甸校区"]
["车辆工程/机械电子工程/机械工程/机械设计制造及其自动化/汽车服务工程","华北理工大学","机械设计制造及其自动化",50,"理工","工学",2,"曹妃甸校区"]
["计算机科学与技术/软件工程/数字媒体技术/网络工程/物联网工程","华北理工大学","计算机科学与技术",40,"理工","工学",2,"曹妃甸校区"]
["康复治疗学","华北理工大学","康复治疗学",30,"医学","理学",2,"曹妃甸校区"]
["能源与动力工程","华北理工大学","能源与动力工程",30,"理工","工学",2,"曹妃甸校区"]
["数学与应用数学/信息与计算科学","华北理工大学","数学与应用数学",30,"理工","理学",2,"曹妃甸校区"]
["城市地下空间工程/道路桥梁与渡河工程/建筑学/勘查技术与工程/历史建筑保护工程/土木工程","华北理工大学","土木工程",30,"理工","工学",2,"曹妃甸校区"]
["药学","华北理工大学","药学",60,"医学","理学",2,"曹妃甸校区"]
["应用心理学","华北理工大学","应用心理学",110,"文史","理学",2,"曹妃甸校区"]
["法学","华北理工大学冀唐学院","法学",10,"文史","法学",2,"校本部"]
["护理学/护理学（应用型实验班）/助产学","华北理工大学冀唐学院","护理学",100,"医学","理学",2,"校本部"]
["药学","华北理工大学冀唐学院","药学",35,"医学","理学",2,"校本部"]
["医学影像技术","华北理工大学冀唐学院","医学影像技术",40,"医学","理学 ",2,"校本部"]
["翻译/商务英语/英语","华北理工大学冀唐学院","英语",15,"英语","文学",2,"校本部"]
["财务管理/会计学/审计学","华北理工大学轻工学院","财务管理",45,"经管","管理学",2,"校本部"]
["工程管理/工程造价","华北理工大学轻工学院","工程造价",45,"理工","工学",2,"校本部"]
["工商管理","华北理工大学轻工学院","工商管理",45,"经管","管理学",2,"校本部"]
["环境设计","华北理工大学轻工学院","环境设计",30,"艺术","艺术学",2,"校本部"]
["车辆工程/机械电子工程/机械工程/机械设计制造及其自动化/汽车服务工程","华北理工大学轻工学院","机械设计制造及其自动化",45,"理工","工学",2,"校本部"]
["计算机科学与技术/软件工程/数字媒体技术/网络工程/物联网工程","华北理工大学轻工学院","计算机科学与技术",45,"理工","工学",2,"校本部"]
["社会体育指导与管理/体育教育/运动康复","华北理工大学轻工学院","社会体育指导与管理",45,"体育","教育学",2,"校本部"]
["市场营销","华北理工大学轻工学院","市场营销",45,"经管","管理学",2,"校本部"]
["视觉传达设计","华北理工大学轻工学院","视觉传达设计",35,"艺术","艺术学",2,"校本部"]
["学前教育","华北理工大学轻工学院","学前教育",120,"文史","教育学",2,"校本部"]
["财务管理/会计学/审计学","廊坊师范学院","财务管理",60,"经管","管理学 ",2,"固安校区"]
["产品设计/服装与服饰设计/绘画/美术学","廊坊师范学院","产品设计",35,"艺术","艺术学",2,"校本部"]
["电气工程及其自动化/电气工程与智能控制/电子信息工程/轨道交通信号与控制/自动化","廊坊师范学院","电气工程及其自动化",30,"理工","工学 ",2,"校本部"]
["法学","廊坊师范学院","法学",75,"文史","法学 ",2,"校本部"]
["国际经济与贸易","廊坊师范学院","国际经济与贸易",120,"经管","经济学 ",2,"固安校区"]
["城市地下空间工程/道路桥梁与渡河工程/建筑学/勘查技术与工程/历史建筑保护工程/土木工程","廊坊师范学院","历史建筑保护工程",20,"理工","工学 ",2,"校本部"]
["产品设计/服装与服饰设计/绘画/美术学","廊坊师范学院","美术学",20,"艺术","艺术学 ",2,"校本部"]
["计算机科学与技术/软件工程/数字媒体技术/网络工程/物联网工程","廊坊师范学院","软件工程",50,"理工","工学",2,"校本部"]
["食品科学与工程","廊坊师范学院","食品科学与工程",35,"理工","工学 ",2,"校本部"]
["思想政治教育","廊坊师范学院","思想政治教育",135,"文史","教育学 ",2,"校本部"]
["社会体育指导与管理/体育教育/运动康复","廊坊师范学院","体育教育",30,"体育","教育学 ",2,"校本部"]
["小学教育","廊坊师范学院","小学教育",60,"文史","教育学 ",2,"校本部"]
["心理学","廊坊师范学院","心理学",50,"理工","理学 ",2,"校本部"]
["广播电视学/网络与新媒体/新闻学","廊坊师范学院","新闻学",50,"文史","文学 ",2,"校本部"]
["学前教育","廊坊师范学院","学前教育",50,"文史","教育学 ",2,"校本部"]
["翻译/商务英语/英语","廊坊师范学院","英语",30,"外语","文学 ",2,"校本部"]
["工程管理/工程造价","石家庄铁道大学","工程管理",35,"经管","管理学",2,"校本部"]
["车辆工程/机械电子工程/机械工程/机械设计制造及其自动化/汽车服务工程","石家庄铁道大学","机械设计制造及其自动化",35,"理工","工学",2,"校本部"]
["城市地下空间工程/道路桥梁与渡河工程/建筑学/勘查技术与工程/历史建筑保护工程/土木工程","石家庄铁道大学","土木工程",35,"理工","工学",2,"校本部"]
["财务管理/会计学/审计学","石家庄铁道大学四方学院","财务管理",35,"经管","管理学",2,"南校区"]
["产品设计/服装与服饰设计/绘画/美术学","石家庄铁道大学四方学院","产品设计",30,"艺术","艺术学",2,"西校区"]
["电气工程及其自动化/电气工程与智能控制/电子信息工程/轨道交通信号与控制/自动化","石家庄铁道大学四方学院","电气工程及其自动化",60,"理工","工学 ",2,"南校区"]
["电气工程及其自动化/电气工程与智能控制/电子信息工程/轨道交通信号与控制/自动化","石家庄铁道大学四方学院","电子信息工程",60,"理工","工学 ",2,"南校区"]
["工程管理/工程造价","石家庄铁道大学四方学院","工程管理",70,"经管","管理学",2,"南校区"]
["工程管理/工程造价","石家庄铁道大学四方学院","工程造价",60,"理工","工学",2,"西校区"]
["电气工程及其自动化/电气工程与智能控制/电子信息工程/轨道交通信号与控制/自动化","石家庄铁道大学四方学院","轨道交通信号与控制",60,"理工","工学 ",2,"南校区"]
["国际经济与贸易","石家庄铁道大学四方学院","国际经济与贸易",70,"经管","经济学 ",2,"南校区"]
["环境设计","石家庄铁道大学四方学院","环境设计",30,"艺术","艺术学",2,"西校区"]
["财务管理/会计学/审计学","石家庄铁道大学四方学院","会计学",70,"经管","管理学",2,"南校区"]
["车辆工程/机械电子工程/机械工程/机械设计制造及其自动化/汽车服务工程","石家庄铁道大学四方学院","机械设计制造及其自动化",60,"理工","工学",2,"西校区"]
["计算机科学与技术/软件工程/数字媒体技术/网络工程/物联网工程","石家庄铁道大学四方学院","计算机科学与技术",70,"理工","工学 ",2,"南校区"]
["金融工程/金融学/投资学","石家庄铁道大学四方学院","金融学",70,"经管","经济学 ",2,"南校区"]
["市场营销","石家庄铁道大学四方学院","市场营销",60,"经管","管理学",2,"南校区"]
["视觉传达设计","石家庄铁道大学四方学院","视觉传达设计",30,"艺术","艺术学",2,"西校区"]
["城市地下空间工程/道路桥梁与渡河工程/建筑学/勘查技术与工程/历史建筑保护工程/土木工程","石家庄铁道大学四方学院","土木工程",60,"理工","工学 ",2,"南校区"]
["翻译/商务英语/英语","石家庄铁道大学四方学院","英语",35,"外语","文学 ",2,"南校区"]
["电气工程及其自动化/电气工程与智能控制/电子信息工程/轨道交通信号与控制/自动化","石家庄铁道大学四方学院","自动化",60,"理工","工学 ",2,"南校区"]
["动画","石家庄学院","动画",25,"艺术","艺术学 ",2,"校本部"]
["法学","石家庄学院","法学",30,"文史","法学",2,"校本部"]
["汉语国际教育/汉语言文学","石家庄学院","汉语言文学",50,"文史","文学 ",2,"校本部"]
["历史学","石家庄学院","历史学",30,"文史","历史学 ",2,"校本部"]
["酒店管理/旅游管理","石家庄学院","旅游管理",20,"经管","管理学 ",2,"校本部"]
["社会体育指导与管理/体育教育/运动康复","石家庄学院","社会体育指导与管理",20,"体育","教育学 ",2,"校本部"]
["数学与应用数学/信息与计算科学","石家庄学院","数学与应用数学",20,"理工","理学 ",2,"校本部"]
["思想政治教育","石家庄学院","思想政治教育",30,"文史","法学",2,"校本部"]
["社会体育指导与管理/体育教育/运动康复","石家庄学院","体育教育",20,"体育","教育学 ",2,"校本部"]
["舞蹈编导/舞蹈表演/舞蹈学/艺术教育（舞蹈）/音乐学（舞蹈）","石家庄学院","舞蹈学",30,"艺术","艺术学",2,"校本部"]
["数学与应用数学/信息与计算科学","石家庄学院","信息与计算科学",20,"理工","理学",2,"校本部"]
["音乐表演（器乐）/音乐学（器乐）","石家庄学院","音乐学（器乐）",15,"艺术","艺术学",2,"校本部"]
["艺术教育（声乐）/音乐表演（声乐）/音乐学（声乐）","石家庄学院","音乐学（声乐）",15,"艺术","艺术学 ",2,"校本部"]
["翻译/商务英语/英语","石家庄学院","英语",30,"外语","文学 ",2,"校本部"]
["应用心理学","石家庄学院","应用心理学",30,"文史","理学 ",2,"校本部"]
["法学","唐山师范学院","法学",80,"文史","法学",2,"校本部"]
["广播电视学/网络与新媒体/新闻学","唐山师范学院","广播电视学",40,"文史","文学",2,"校本部"]
["汉语国际教育/汉语言文学","唐山师范学院","汉语言文学",50,"文史","文学",2,"校本部"]
["计算机科学与技术/软件工程/数字媒体技术/网络工程/物联网工程","唐山师范学院","计算机科学与技术",50,"理工","工学",2,"校本部"]
["历史学","唐山师范学院","历史学",50,"文史","历史学",2,"校本部"]
["酒店管理/旅游管理","唐山师范学院","旅游管理",20,"经管","管理学",2,"校本部"]
["产品设计/服装与服饰设计/绘画/美术学","唐山师范学院","美术学",90,"艺术","艺术学",2,"校本部"]
["视觉传达设计","唐山师范学院","视觉传达设计",30,"艺术","艺术学",2,"校本部"]
["数学与应用数学/信息与计算科学","唐山师范学院","数学与应用数学",40,"理工","理学",2,"校本部"]
["思想政治教育","唐山师范学院","思想政治教育",50,"文史","法学",2,"校本部"]
["物流管理/物流工程","唐山师范学院","物流管理",60,"经管","管理学",2,"校本部"]
["学前教育","唐山师范学院","学前教育",370,"文史","教育学",2,"校本部"]
["音乐表演（器乐）/音乐学（器乐）","唐山师范学院","音乐学（器乐）",10,"艺术","艺术学",2,"校本部"]
["艺术教育（声乐）/音乐表演（声乐）/音乐学（声乐）","唐山师范学院","音乐学（声乐）",10,"艺术","艺术学",2,"校本部"]
["舞蹈编导/舞蹈表演/舞蹈学/艺术教育（舞蹈）/音乐学（舞蹈）","唐山师范学院","音乐学（舞蹈）",10,"艺术","艺术学",2,"校本部"]
["翻译/商务英语/英语","唐山师范学院","英语",100,"外语","文学",2,"校本部"]
["应用心理学","唐山师范学院","应用心理学",40,"文史","理学",2,"校本部"]
["财务管理/会计学/审计学","唐山学院","财务管理",75,"经管","管理学",2,"校本部"]
["产品设计/服装与服饰设计/绘画/美术学","唐山学院","产品设计",35,"艺术","艺术学",2,"校本部"]
["车辆工程/机械电子工程/机械工程/机械设计制造及其自动化/汽车服务工程","唐山学院","车辆工程",80,"理工","工学",2,"校本部"]
["电气工程及其自动化/电气工程与智能控制/电子信息工程/轨道交通信号与控制/自动化","唐山学院","电气工程及其自动化",50,"理工","工学",2,"校本部"]
["电气工程及其自动化/电气工程与智能控制/电子信息工程/轨道交通信号与控制/自动化","唐山学院","电子信息工程",50,"理工","工学",2,"校本部"]
["法学","唐山学院","法学",80,"文史","法学",2,"校本部"]
["产品设计/服装与服饰设计/绘画/美术学","唐山学院","服装与服饰设计",30,"艺术","艺术学",2,"校本部"]
["广告学","唐山学院","广告学",120,"文史","文学",2,"校本部"]
["国际经济与贸易","唐山学院","国际经济与贸易",40,"经管","经济学",2,"校本部"]
["汉语国际教育/汉语言文学","唐山学院","汉语言文学",80,"文史","文学",2,"校本部"]
["环境设计","唐山学院","环境设计",35,"艺术","艺术学",2,"校本部"]
["财务管理/会计学/审计学","唐山学院","会计学",75,"经管","管理学",2,"校本部"]
["计算机科学与技术/软件工程/数字媒体技术/网络工程/物联网工程","唐山学院","计算机科学与技术",80,"理工","工学",2,"校本部"]
["秘书学","唐山学院","秘书学",80,"文史","文学",2,"校本部"]
["计算机科学与技术/软件工程/数字媒体技术/网络工程/物联网工程","唐山学院","软件工程",80,"理工","工学",2,"校本部"]
["翻译/商务英语/英语","唐山学院","商务英语",90,"外语","文学",2,"校本部"]
["财务管理/会计学/审计学","唐山学院","审计学",70,"经管","管理学",2,"校本部"]
["市场营销","唐山学院","市场营销",120,"经管","管理学",2,"校本部"]
["视觉传达设计","唐山学院","视觉传达设计",65,"艺术","艺术学",2,"校本部"]
["城市地下空间工程/道路桥梁与渡河工程/建筑学/勘查技术与工程/历史建筑保护工程/土木工程","唐山学院","土木工程",80,"理工","工学",2,"校本部"]
["翻译/商务英语/英语","唐山学院","英语",90,"外语","文学",2,"校本部"]
["电气工程及其自动化/电气工程与智能控制/电子信息工程/轨道交通信号与控制/自动化","唐山学院","自动化",50,"理工","工学",2,"校本部"]
["表演","邢台学院","表演",15,"艺术","艺术学",2,"校本部"]
["财务管理/会计学/审计学","邢台学院","财务管理",60,"经管","管理学",2,"校本部"]
["法学","邢台学院","法学",120,"文史","法学",2,"校本部"]
["工商管理","邢台学院","工商管理",120,"经管","管理学",2,"校本部"]
["国际经济与贸易","邢台学院","国际经济与贸易",80,"经管","经济学",2,"校本部"]
["汉语国际教育/汉语言文学","邢台学院","汉语言文学",40,"文史","文学",2,"校本部"]
["化学/应用化学","邢台学院","化学",10,"理工","理学",2,"校本部"]
["环境设计","邢台学院","环境设计",20,"艺术","艺术学",2,"校本部"]
["财务管理/会计学/审计学","邢台学院","会计学",60,"经管","管理学",2,"校本部"]
["计算机科学与技术/软件工程/数字媒体技术/网络工程/物联网工程","邢台学院","计算机科学与技术",80,"理工","工学",2,"校本部"]
["历史学","邢台学院","历史学",100,"文史","历史学",2,"校本部"]
["产品设计/服装与服饰设计/绘画/美术学","邢台学院","美术学",30,"艺术","艺术学",2,"校本部"]
["秘书学","邢台学院","秘书学",40,"文史","文学",2,"校本部"]
["地理科学/人文地理与城乡规划","邢台学院","人文地理与城乡规划",10,"理工","理学",2,"校本部"]
["生物科学","邢台学院","生物科学",10,"理工","理学",2,"校本部"]
["市场营销","邢台学院","市场营销",80,"经管","管理学",2,"校本部"]
["视觉传达设计","邢台学院","视觉传达设计",10,"艺术","艺术学",2,"校本部"]
["数学与应用数学/信息与计算科学","邢台学院","数学与应用数学",10,"理工","理学",2,"校本部"]
["思想政治教育","邢台学院","思想政治教育",80,"文史","法学",2,"校本部"]
["社会体育指导与管理/体育教育/运动康复","邢台学院","体育教育",40,"体育","教育学",2,"校本部"]
["舞蹈编导/舞蹈表演/舞蹈学/艺术教育（舞蹈）/音乐学（舞蹈）","邢台学院","舞蹈学",5,"艺术","艺术学",2,"校本部"]
["小学教育","邢台学院","小学教育",140,"文史","教育学",2,"校本部"]
["学前教育","邢台学院","学前教育",160,"文史","教育学",2,"校本部"]
["音乐表演（器乐）/音乐学（器乐）","邢台学院","音乐学（器乐）",8,"艺术","艺术学",2,"校本部"]
["艺术教育（声乐）/音乐表演（声乐）/音乐学（声乐）","邢台学院","音乐学（声乐）",12,"艺术","艺术学",2,"校本部"]
["翻译/商务英语/英语","邢台学院","英语",80,"外语","文学",2,"校本部"]
["电气工程及其自动化/电气工程与智能控制/电子信息工程/轨道交通信号与控制/自动化","邢台学院","自动化",40,"理工","工学",2,"校本部"]
["播音与主持艺术","燕京理工学院","播音与主持艺术",10,"艺术","艺术学",2,"校本部"]
["财务管理/会计学/审计学","燕京理工学院","财务管理",50,"经管","管理学",2,"校本部"]
["法学","燕京理工学院","法学",120,"文史","法学",2,"校本部"]
["工程管理/工程造价","燕京理工学院","工程造价",120,"经管","管理学",2,"校本部"]
["广播电视编导/摄影","燕京理工学院","广播电视编导",10,"艺术","艺术学",2,"校本部"]
["护理学/护理学（应用型实验班）/助产学","燕京理工学院","护理学",170,"医学","理学",2,"校本部"]
["环境设计","燕京理工学院","环境设计",20,"艺术","艺术学",2,"校本部"]
["财务管理/会计学/审计学","燕京理工学院","会计学",100,"经管","管理学",2,"校本部"]
["车辆工程/机械电子工程/机械工程/机械设计制造及其自动化/汽车服务工程","燕京理工学院","机械工程",30,"理工","工学",2,"校本部"]
["计算机科学与技术/软件工程/数字媒体技术/网络工程/物联网工程","燕京理工学院","计算机科学与技术",150,"理工","工学",2,"校本部"]
["视觉传达设计","燕京理工学院","视觉传达设计",10,"艺术","艺术学",2,"校本部"]
["物流管理/物流工程","燕京理工学院","物流管理",20,"经管","管理学",2,"校本部"]
["学前教育","燕京理工学院","学前教育",150,"文史","教育学",2,"校本部"]
["翻译/商务英语/英语","燕京理工学院","英语",130,"外语","文学",2,"校本部"]
["材料化学/化学工程与工艺/制药工程","燕京理工学院","制药工程",10,"理工","工学",2,"校本部"]
["地理科学/人文地理与城乡规划","张家口学院","地理科学",27,"理工","理学",2,"校本部"]
["汉语国际教育/汉语言文学","张家口学院","汉语言文学",45,"文史","文学",2,"校本部"]
["护理学/护理学（应用型实验班）/助产学","张家口学院","护理学",225,"医学","理学",2,"校本部"]
["酒店管理/旅游管理","张家口学院","旅游管理",20,"经管","管理学",2,"校本部"]
["产品设计/服装与服饰设计/绘画/美术学","张家口学院","美术学",10,"艺术","艺术学",2,"校本部"]
["生物科学","张家口学院","生物科学",28,"理工","理学",2,"校本部"]
["数学与应用数学/信息与计算科学","张家口学院","数学与应用数学",15,"理工","理学",2,"校本部"]
["思想政治教育","张家口学院","思想政治教育",45,"文史","法学",2,"校本部"]
["小学教育","张家口学院","小学教育",45,"文史","教育学",2,"校本部"]
["学前教育","张家口学院","学前教育",95,"文史","教育学",2,"校本部"]
["药学","张家口学院","药学",45,"医学","理学",2,"校本部"]
["医学影像技术","张家口学院","医学影像技术",45,"医学","理学 ",2,"校本部"]
["音乐表演（器乐）/音乐学（器乐）","张家口学院","音乐学（器乐）",10,"艺术","艺术学",2,"校本部"]
["艺术教育（声乐）/音乐表演（声乐）/音乐学（声乐）","张家口学院","音乐学（声乐）",20,"艺术","艺术学",2,"校本部"]
["翻译/商务英语/英语","张家口学院","英语",30,"外语","文学",2,"校本部"]

{"sheet":"Sheet2","index":1,"n_rows":514,"n_cols":15,"rows_kept":514}
["联考专业","学校名称","招生专业","原招生计划","扩规模后招生计划","计划总数","专业类别","授予学位","学制","教学\n地点","拟调出计划","拟调入计划",null,"计划确定数","计划确定数"]
["财务管理/会计学/审计学","保定理工学院","财务管理",60,40,{"$f":"SUM(D2:E2)","v":100},"经管","管理学",2,"校本部",10,null,{"$f":"F2-K2","v":90},{"$f":"M2+L2","v":90},90]
["电气工程及其自动化/电气工程与智能控制/电子信息工程/轨道交通信号与控制/自动化","保定理工学院","电气工程及其自动化",30,60,90,"理工","工学",2,"校本部",null,20,90,110,110]
["工程管理/工程造价","保定理工学院","工程管理",60,40,100,"经管","管理学",2,"校本部",null,20,100,120,120]
["工商管理","保定理工学院","工商管理",60,50,110,"经管","管理学",2,"校本部",null,null,110,110,110]
["财务管理/会计学/审计学","保定理工学院","会计学",60,50,110,"经管","管理学",2,"校本部",20,null,90,90,90]
["车辆工程/机械电子工程/机械工程/机械设计制造及其自动化/汽车服务工程","保定理工学院","机械设计制造及其自动化",30,50,80,"理工","工学",2,"校本部",20,null,60,60,60]
["计算机科学与技术/软件工程/数字媒体技术/网络工程/物联网工程","保定理工学院","计算机科学与技术",30,90,120,"理工","工学",2,"校本部",null,null,120,120,120]
["城市地下空间工程/道路桥梁与渡河工程/建筑学/勘查技术与工程/历史建筑保护工程/土木工程","保定理工学院","土木工程",40,50,90,"理工","工学",2,"校本部",null,10,90,100,100]
["翻译/商务英语/英语","保定理工学院","英语",30,70,100,"外语","文学",2,"校本部",null,null,100,100,100]
["地理科学/人文地理与城乡规划","保定学院","地理科学",30,0,30,"理工","理学",2,"校本部",null,null,30,30,30]
["车辆工程/机械电子工程/机械工程/机械设计制造及其自动化/汽车服务工程","保定学院","汽车服务工程",30,0,30,"理工","工学",2,"校本部",null,null,30,30,30]
["人力资源管理","保定学院","人力资源管理*",0,20,20,"经管","管理学",2,"校本部",20,null,0,0,0]
["计算机科学与技术/软件工程/数字媒体技术/网络工程/物联网工程","保定学院","软件工程",0,30,30,"理工","工学",2,"校本部",null,null,30,30,30]
["翻译/商务英语/英语","保定学院","商务英语",30,0,30,"外语","文学",2,"校本部",null,null,30,30,30]
["生物科学","保定学院","生物科学",0,40,40,"理工","理学",2,"校本部",null,null,40,40,40]
["数学与应用数学/信息与计算科学","保定学院","数学与应用数学",0,10,10,"理工","理学",2,"校本部",null,null,10,10,10]
["思想政治教育","保定学院","思想政治教育",40,0,40,"文史","法学 ",2,"校本部",null,20,40,60,60]
["广播电视学/网络与新媒体/新闻学","保定学院","网络与新媒体",40,0,40,"文史","文学",2,"校本部",null,null,40,40,40]
["物流管理/物流工程","保定学院","物流工程*",0,20,20,"经管","管理学",2,"校本部",null,null,20,20,20]
["小学教育","保定学院","小学教育",0,10,10,"文史","教育学",2,"校本部",null,null,10,10,10]
["学前教育","保定学院","学前教育",0,30,30,"文史","教育学",2,"校本部",null,null,30,30,30]
["知识产权","保定学院","知识产权",30,0,30,"理工","法学 ",2,"校本部",null,null,30,30,30]
["材料成型及控制工程","北华航天工业学院","材料成型及控制工程",10,0,10,"理工","工学",2,"校本部",null,null,10,10,10]
["电气工程及其自动化/电气工程与智能控制/电子信息工程/轨道交通信号与控制/自动化","北华航天工业学院","电子信息工程",35,0,35,"理工","工学",2,"校本部",null,null,35,35,35]
["车辆工程/机械电子工程/机械工程/机械设计制造及其自动化/汽车服务工程","北华航天工业学院","机械设计制造及其自动化",40,0,40,"理工","工学",2,"校本部",null,null,40,40,40]
["电气工程及其自动化/电气工程与智能控制/电子信息工程/轨道交通信号与控制/自动化","北华航天工业学院","自动化",35,0,35,"理工","工学",2,"校本部",null,null,35,35,35]
["车辆工程/机械电子工程/机械工程/机械设计制造及其自动化/汽车服务工程","北京交通大学海滨学院","车辆工程",0,40,40,"理工","工学",2,"校本部",null,null,40,40,40]
["电气工程及其自动化/电气工程与智能控制/电子信息工程/轨道交通信号与控制/自动化","北京交通大学海滨学院","电气工程及其自动化",0,30,30,"理工","工学",2,"校本部",null,30,30,60,60]
["工程管理/工程造价","北京交通大学海滨学院","工程管理",0,30,30,"经管","管理学",2,"校本部",null,null,30,30,30]
["工商管理","北京交通大学海滨学院","工商管理",0,30,30,"经管","管理学",2,"校本部",null,null,30,30,30]
["材料化学/化学工程与工艺/制药工程","北京交通大学海滨学院","化学工程与工艺",0,60,60,"理工","工学",2,"校本部",30,null,30,30,30]
["车辆工程/机械电子工程/机械工程/机械设计制造及其自动化/汽车服务工程","北京交通大学海滨学院","机械工程",0,40,40,"理工","工学",2,"校本部",null,null,40,40,40]
["酒店管理/旅游管理","北京交通大学海滨学院","酒店管理",0,30,30,"经管","管理学",2,"校本部",null,null,30,30,30]
["计算机科学与技术/软件工程/数字媒体技术/网络工程/物联网工程","北京交通大学海滨学院","软件工程",0,30,30,"理工","工学",2,"校本部",null,null,30,30,30]
["城市地下空间工程/道路桥梁与渡河工程/建筑学/勘查技术与工程/历史建筑保护工程/土木工程","北京交通大学海滨学院","土木工程",0,40,40,"理工","工学",2,"校本部",null,null,40,40,40]
["计算机科学与技术/软件工程/数字媒体技术/网络工程/物联网工程","北京交通大学海滨学院","物联网工程",0,30,30,"理工","工学",2,"校本部",null,null,30,30,30]
["电气工程及其自动化/电气工程与智能控制/电子信息工程/轨道交通信号与控制/自动化","北京交通大学海滨学院","自动化",0,40,40,"理工","工学",2,"校本部",null,null,40,40,40]
["护理学/护理学（应用型实验班）/助产学","北京中医药大学东方学院","护理学",0,150,150,"医学","理学",2,"渤海校区",null,null,150,150,150]
["财务管理/会计学/审计学","沧州师范学院","财务管理",30,10,40,"经管","管理学 ",2,"校本部",10,null,30,30,30]
["电子商务/国际商务","沧州师范学院","电子商务",0,40,40,"经管","管理学",2,"校本部",10,null,30,30,30]
["汉语国际教育/汉语言文学","沧州师范学院","汉语言文学",40,null,40,"文史","文学 ",2,"校本部",null,40,40,80,80]
["化学/应用化学","沧州师范学院","化学",10,null,10,"理工","理学",2,"校本部",null,null,10,10,10]
["计算机科学与技术/软件工程/数字媒体技术/网络工程/物联网工程","沧州师范学院","计算机科学与技术",30,10,40,"理工","工学",2,"校本部",null,null,40,40,40]
["历史学","沧州师范学院","历史学",30,10,40,"文史","历史学 ",2,"校本部",null,null,40,40,40]
["产品设计/服装与服饰设计/绘画/美术学","沧州师范学院","美术学",40,30,70,"艺术","文学",2,"校本部",30,null,40,40,40]
["生物科学","沧州师范学院","生物科学",10,null,10,"理工","理学 ",2,"校本部",null,null,10,10,10]
["市场营销","沧州师范学院","市场营销",10,null,10,"经管","管理学 ",2,"校本部",null,null,10,10,10]
["数学与应用数学/信息与计算科学","沧州师范学院","数学与应用数学",30,10,40,"理工","理学 ",2,"校本部",10,null,30,30,30]
["思想政治教育","沧州师范学院","思想政治教育",30,10,40,"文史","法学 ",2,"校本部",null,20,40,60,60]
["社会体育指导与管理/体育教育/运动康复","沧州师范学院","体育教育",40,20,60,"体育","教育学 ",2,"校本部",null,null,60,60,60]
["广播电视学/网络与新媒体/新闻学","沧州师范学院","网络与新媒体",10,null,10,"文史","文学 ",2,"校本部",null,null,10,10,10]
["舞蹈编导/舞蹈表演/舞蹈学/艺术教育（舞蹈）/音乐学（舞蹈）","沧州师范学院","舞蹈编导",20,null,20,"艺术","艺术学",2,"校本部",null,null,20,20,20]
["舞蹈编导/舞蹈表演/舞蹈学/艺术教育（舞蹈）/音乐学（舞蹈）","沧州师范学院","舞蹈表演",20,null,20,"艺术","艺术学",2,"校本部",null,null,20,20,20]
["小学教育","沧州师范学院","小学教育",30,50,80,"文史","教育学 ",2,"校本部",null,null,80,80,80]
["学前教育","沧州师范学院","学前教育",40,null,40,"文史","教育学 ",2,"校本部",null,null,40,40,40]
["音乐表演（器乐）/音乐学（器乐）","沧州师范学院","音乐学（器乐）",5,null,5,"艺术","艺术学 ",2,"校本部",null,null,5,5,5]
["艺术教育（声乐）/音乐表演（声乐）/音乐学（声乐）","沧州师范学院","音乐学（声乐）",35,10,45,"艺术","艺术学",2,"校本部",null,null,45,45,45]
["翻译/商务英语/英语","沧州师范学院","英语",40,null,40,"外语","文学 ",2,"校本部",null,null,40,40,40]
["护理学/护理学（应用型实验班）/助产学","承德医学院","护理学",150,40,190,"医学","理学 ",2,"校本部",null,null,190,190,190]
["临床医学","承德医学院","临床医学",130,25,155,"医学","医学 ",3,"校本部",null,null,155,155,155]
["针灸推拿学","承德医学院","针灸推拿学",10,0,10,"医学","医学 ",3,"校本部",null,null,10,10,10]
["中医学","承德医学院","中医学",5,0,5,"医学","医学 ",3,"校本部",null,null,5,5,5]
["播音与主持艺术","邯郸学院","播音与主持艺术",40,10,50,"艺术","艺术学",2,"校本部",10,null,40,40,40]
["材料化学/化学工程与工艺/制药工程","邯郸学院","材料化学",25,20,45,"理工","工学",2,"校本部",15,null,30,30,30]
["电气工程及其自动化/电气工程与智能控制/电子信息工程/轨道交通信号与控制/自动化","邯郸学院","电气工程及其自动化",60,10,{"$f":"SUM(D66:E66)","v":70},"理工","工学",2,"校本部",null,null,{"$f":"F66-K66","v":70},{"$f":"M66+L66","v":70},70]
["电气工程及其自动化/电气工程与智能控制/电子信息工程/轨道交通信号与控制/自动化","邯郸学院","电子信息工程",40,0,40,"理工","工学",2,"校本部",null,null,40,40,40]
["动画","邯郸学院","动画",0,40,40,"艺术","艺术学",2,"校本部",25,null,15,15,15]
["汉语国际教育/汉语言文学","邯郸学院","汉语国际教育",70,50,120,"文史","文学",2,"校本部",null,35,120,155,155]
["化学/应用化学","邯郸学院","化学",0,30,30,"理工","理学",2,"校本部",null,null,30,30,30]
["材料化学/化学工程与工艺/制药工程","邯郸学院","化学工程与工艺",25,20,{"$f":"SUM(D71:E71)","v":45},"理工","工学",2,"校本部",15,null,30,30,30]
["环境设计","邯郸学院","环境设计",0,30,30,"艺术","艺术学",2,"校本部",null,null,30,30,30]
["车辆工程/机械电子工程/机械工程/机械设计制造及其自动化/汽车服务工程","邯郸学院","机械设计制造及其自动化",60,10,70,"理工","工学",2,"校本部",10,null,60,60,60]
["计算机科学与技术/软件工程/数字媒体技术/网络工程/物联网工程","邯郸学院","计算机科学与技术",30,0,30,"理工","工学",2,"校本部",null,null,30,30,30]
["历史学","邯郸学院","历史学",0,40,40,"文史","历史学 ",2,"校本部",null,null,40,40,40]
["酒店管理/旅游管理","邯郸学院","旅游管理",80,40,{"$f":"SUM(D76:E76)","v":120},"经管","管理学",2,"校本部",null,null,120,120,120]
["产品设计/服装与服饰设计/绘画/美术学","邯郸学院","美术学",80,20,100,"艺术","艺术学",2,"校本部",20,null,80,80,80]
["秘书学","邯郸学院","秘书学",0,120,120,"文史","文学",2,"校本部",null,null,120,120,120]
["计算机科学与技术/软件工程/数字媒体技术/网络工程/物联网工程","邯郸学院","软件工程",40,40,80,"理工","工学",2,"校本部",null,null,80,80,80]
["社会体育指导与管理/体育教育/运动康复","邯郸学院","社会体育指导与管理",30,0,30,"体育","教育学",2,"校本部",null,null,30,30,30]
["食品科学与工程","邯郸学院","食品科学与工程",60,0,60,"理工","工学",2,"校本部",null,null,60,60,60]
["视觉传达设计","邯郸学院","视觉传达设计",0,30,30,"艺术","艺术学",2,"校本部",null,null,30,30,30]
["思想政治教育","邯郸学院","思想政治教育",40,0,40,"文史","法学",2,"校本部",null,40,40,80,80]
["社会体育指导与管理/体育教育/运动康复","邯郸学院","体育教育（太极拳方向）",30,0,30,"体育","教育学",2,"校本部",null,null,30,30,30]
["计算机科学与技术/软件工程/数字媒体技术/网络工程/物联网工程","邯郸学院","网络工程",40,0,40,"理工","工学",2,"校本部",null,null,40,40,40]
["舞蹈编导/舞蹈表演/舞蹈学/艺术教育（舞蹈）/音乐学（舞蹈）","邯郸学院","舞蹈表演",40,20,60,"艺术","艺术学",2,"校本部",20,null,40,40,40]
["学前教育","邯郸学院","学前教育",90,0,90,"文史","教育学",2,"校本部",null,null,90,90,90]
["音乐表演（器乐）/音乐学（器乐）","邯郸学院","音乐学（器乐）",25,5,30,"艺术","艺术学",2,"校本部",null,null,30,30,30]
["艺术教育（声乐）/音乐表演（声乐）/音乐学（声乐）","邯郸学院","音乐学（声乐）",55,5,60,"艺术","艺术学",2,"校本部",null,null,60,60,60]
["应用心理学","邯郸学院","应用心理学",40,0,40,"文史","理学 ",2,"校本部",null,null,40,40,40]
["材料化学/化学工程与工艺/制药工程","邯郸学院","制药工程",0,30,30,"理工","工学",2,"校本部",30,null,0,0,0]
["财务管理/会计学/审计学","河北北方学院","财务管理",0,60,60,"经管","管理学",2,"东校区",20,null,40,40,40]
["动物医学","河北北方学院","动物医学",40,0,40,"农学","农学",2,"南校区",null,null,40,40,40]
["汉语国际教育/汉语言文学","河北北方学院","汉语言文学",0,40,40,"文史","文学",2,"东校区",null,20,40,60,60]
["护理学/护理学（应用型实验班）/助产学","河北北方学院","护理学",30,90,120,"医学","理学",2,"宣化校区",null,null,120,120,120]
["计算机科学与技术/软件工程/数字媒体技术/网络工程/物联网工程","河北北方学院","计算机科学与技术",0,30,30,"理工","工学",2,"东校区",null,30,30,60,60]
["酒店管理/旅游管理","河北北方学院","酒店管理",0,40,40,"经管","管理学",2,"校本部",null,null,40,40,40]
["秘书学","河北北方学院","秘书学",20,0,20,"文史","文学 ",2,"东校区",null,15,20,35,35]
["翻译/商务英语/英语","河北北方学院","商务英语",0,30,30,"英语","文学",2,"东校区",null,null,30,30,30]
["食品科学与工程","河北北方学院","食品科学与工程",10,0,10,"理工","工学",2,"南校区",null,10,10,20,20]
["市场营销","河北北方学院","市场营销",0,60,60,"经管","管理学",2,"东校区",null,null,60,60,60]
["数学与应用数学/信息与计算科学","河北北方学院","数学与应用数学",20,15,35,"理工","理学",2,"校本部",15,null,20,20,20]
["思想政治教育","河北北方学院","思想政治教育",0,40,40,"文史","法学",2,"校本部",null,null,40,40,40]
["医学检验技术","河北北方学院","医学检验技术",60,20,80,"医学","理学",2,"校本部",null,null,80,80,80]
["医学影像学","河北北方学院","医学影像学*",0,40,40,"医学","医学",3,"北校区",40,null,0,0,0]
["翻译/商务英语/英语","河北北方学院","英语",15,45,60,"外语","文学",2,"东校区",null,null,60,60,60]
["应用心理学","河北北方学院","应用心理学",0,40,40,"理工","教育学",2,"校本部",null,null,40,40,40]
["表演","河北传媒学院","表演",50,0,50,"艺术","艺术学",2,"校本部",null,null,50,50,50]
["播音与主持艺术","河北传媒学院","播音与主持艺术",60,60,120,"艺术","艺术学",2,"校本部",60,null,60,60,60]
["电子商务/国际商务","河北传媒学院","电子商务",30,10,40,"经管","管理学",2,"校本部",10,null,30,30,30]
["动画","河北传媒学院","动画",30,30,60,"艺术","艺术学",2,"校本部",30,null,30,30,30]
["广播电视编导/摄影","河北传媒学院","广播电视编导",40,20,60,"艺术","艺术学",2,"校本部",5,null,55,55,55]
["广播电视学/网络与新媒体/新闻学","河北传媒学院","广播电视学",30,20,50,"文史","文学",2,"校本部",null,30,50,80,80]
["广告学","河北传媒学院","广告学",30,0,30,"文史","文学",2,"校本部",null,40,30,70,70]
["环境设计","河北传媒学院","环境设计",30,30,60,"艺术","艺术学",2,"校本部",null,null,60,60,60]
["计算机科学与技术/软件工程/数字媒体技术/网络工程/物联网工程","河北传媒学院","计算机科学与技术",20,20,40,"理工","工学",2,"校本部",null,20,40,60,60]
["广播电视编导/摄影","河北传媒学院","摄影",30,30,60,"艺术","艺术学",2,"校本部",5,null,55,55,55]
["视觉传达设计","河北传媒学院","视觉传达设计",30,30,60,"艺术","艺术学",2,"校本部",30,null,30,30,30]
["计算机科学与技术/软件工程/数字媒体技术/网络工程/物联网工程","河北传媒学院","网络工程",30,20,50,"理工","工学",2,"校本部",null,30,50,80,80]
["舞蹈编导/舞蹈表演/舞蹈学/艺术教育（舞蹈）/音乐学（舞蹈）","河北传媒学院","舞蹈编导",20,10,30,"艺术","艺术学",2,"校本部",10,null,20,20,20]
["舞蹈编导/舞蹈表演/舞蹈学/艺术教育（舞蹈）/音乐学（舞蹈）","河北传媒学院","舞蹈表演",30,20,50,"艺术","艺术学",2,"校本部",20,null,30,30,30]
["广播电视学/网络与新媒体/新闻学","河北传媒学院","新闻学",60,0,60,"文史","文学",2,"校本部",null,30,60,90,90]
["音乐表演（器乐）/音乐学（器乐）","河北传媒学院","音乐表演（器乐）",10,10,20,"艺术","艺术学",2,"校本部",null,null,20,20,20]
["艺术教育（声乐）/音乐表演（声乐）/音乐学（声乐）","河北传媒学院","音乐表演（声乐）",20,40,60,"艺术","艺术学",2,"校本部",null,20,60,80,80]
["财务管理/会计学/审计学","河北东方学院","财务管理",50,0,50,"经管","管理学",2,"校本部",null,null,50,50,50]
["护理学/护理学（应用型实验班）/助产学","河北东方学院","护理学",120,380,500,"医学","理学",2,"校本部",null,10,500,510,510]
["环境设计","河北东方学院","环境设计",30,30,60,"艺术","艺术学",2,"校本部",null,null,60,60,60]
["车辆工程/机械电子工程/机械工程/机械设计制造及其自动化/汽车服务工程","河北东方学院","汽车服务工程",30,10,40,"理工","工学",2,"校本部",10,null,30,30,30]
["财务管理/会计学/审计学","河北东方学院","审计学",100,0,100,"经管","管理学",2,"校本部",null,null,100,100,100]
["计算机科学与技术/软件工程/数字媒体技术/网络工程/物联网工程","河北东方学院","物联网工程",50,50,100,"理工","工学 ",2,"校本部",null,null,{"$f":"F130-K130","v":100},{"$f":"M130+L130","v":100},100]
["医学影像技术","河北东方学院","医学影像技术",120,30,150,"医学","理学 ",2,"校本部",null,null,150,150,150]
["车辆工程/机械电子工程/机械工程/机械设计制造及其自动化/汽车服务工程","河北工程大学科信学院","车辆工程",0,35,35,"理工","工学",2,"校本部",null,null,35,35,35]
["电气工程及其自动化/电气工程与智能控制/电子信息工程/轨道交通信号与控制/自动化","河北工程大学科信学院","电子信息工程",0,35,35,"理工","工学",2,"校本部",null,null,35,35,35]
["工程管理/工程造价","河北工程大学科信学院","工程管理",0,35,35,"理工","工学",2,"校本部",null,null,35,35,35]
["工商管理","河北工程大学科信学院","工商管理",0,30,30,"经管","管理学",2,"校本部",null,null,30,30,30]
["国际经济与贸易","河北工程大学科信学院","国际经济与贸易",0,35,35,"理工","工学",2,"校本部",null,null,35,35,35]
["计算机科学与技术/软件工程/数字媒体技术/网络工程/物联网工程","河北工程大学科信学院","计算机科学与技术",0,25,25,"理工","工学",2,"校本部",null,null,25,25,25]
["食品科学与工程","河北工程大学科信学院","食品科学与工程",0,35,35,"理工","工学",2,"校本部",null,null,35,35,35]
["水利水电工程","河北工程大学科信学院","水利水电工程",0,30,30,"理工","工学",2,"校本部",null,null,30,30,30]
["城市地下空间工程/道路桥梁与渡河工程/建筑学/勘查技术与工程/历史建筑保护工程/土木工程","河北工程大学科信学院","土木工程",0,30,{"$f":"SUM(D140:E140)","v":30},"理工","工学",2,"校本部",null,null,30,30,30]
["电气工程及其自动化/电气工程与智能控制/电子信息工程/轨道交通信号与控制/自动化","河北工程大学科信学院","自动化",0,60,60,"理工","工学",2,"校本部",null,null,60,60,60]
["财务管理/会计学/审计学","河北工程技术学院","财务管理",40,15,55,"经管","管理学",2,"校本部",15,null,40,40,40]
["电子商务/国际商务","河北工程技术学院","电子商务",40,10,50,"经管","工学 ",2,"校本部",10,null,40,40,40]
["电气工程及其自动化/电气工程与智能控制/电子信息工程/轨道交通信号与控制/自动化","河北工程技术学院","电子信息工程",20,40,60,"理工","工学",2,"校本部",null,null,60,60,60]
["风景园林/园林","河北工程技术学院","风景园林",10,30,40,"农学","工学",2,"校本部",null,null,40,40,40]
["工程管理/工程造价","河北工程技术学院","工程管理",55,35,90,"经管","管理学",2,"校本部",null,null,90,90,90]
["工程管理/工程造价","河北工程技术学院","工程造价",35,35,70,"经管","工学",2,"校本部",null,null,70,70,70]
["国际经济与贸易","河北工程技术学院","国际经济与贸易",30,20,50,"经管","经济学",2,"校本部",null,null,50,50,50]
["城市地下空间工程/道路桥梁与渡河工程/建筑学/勘查技术与工程/历史建筑保护工程/土木工程","河北工程技术学院","建筑学",30,20,50,"理工","工学",2,"校本部",null,null,50,50,50]
["金融工程/金融学/投资学","河北工程技术学院","金融工程",10,10,20,"经管","经济学",2,"校本部",10,null,10,10,10]
["计算机科学与技术/软件工程/数字媒体技术/网络工程/物联网工程","河北工程技术学院","软件工程",60,45,105,"理工","工学",2,"校本部",null,null,105,105,105]
["财务管理/会计学/审计学","河北工程技术学院","审计学",40,15,55,"经管","管理学",2,"校本部",15,null,40,40,40]
["市场营销","河北工程技术学院","市场营销",40,70,110,"经管","管理学",2,"校本部",null,null,110,110,110]
["城市地下空间工程/道路桥梁与渡河工程/建筑学/勘查技术与工程/历史建筑保护工程/土木工程","河北工程技术学院","土木工程",30,30,60,"理工","工学",2,"校本部",null,null,60,60,60]
["计算机科学与技术/软件工程/数字媒体技术/网络工程/物联网工程","河北工程技术学院","网络工程",40,50,90,"理工","工学",2,"校本部",null,null,90,90,90]
["广播电视学/网络与新媒体/新闻学","河北工程技术学院","网络与新媒体",30,25,55,"文史","文学",2,"校本部",null,50,55,105,105]
["计算机科学与技术/软件工程/数字媒体技术/网络工程/物联网工程","河北工程技术学院","物联网工程",40,50,90,"理工","工学",2,"校本部",null,null,90,90,90]
["环境工程/环境科学/环境生态工程/环保设备工程","河北环境工程学院","环保设备工程*",0,75,75,"理工","工学",2,"校本部",null,null,75,75,75]
["环境工程/环境科学/环境生态工程/环保设备工程","河北环境工程学院","环境工程",35,40,75,"理工","工学",2,"校本部",null,5,75,80,80]
["环境工程/环境科学/环境生态工程/环保设备工程","河北环境工程学院","环境科学",35,40,75,"理工","理学",2,"校本部",null,5,75,80,80]
["环境设计","河北环境工程学院","环境设计",35,15,50,"艺术","艺术学",2,"校本部",10,null,40,40,40]
["环境工程/环境科学/环境生态工程/环保设备工程","河北环境工程学院","环境生态工程",0,70,70,"理工","工学",2,"校本部",null,null,70,70,70]
["计算机科学与技术/软件工程/数字媒体技术/网络工程/物联网工程","河北环境工程学院","软件工程",0,70,70,"理工","工学",2,"校本部",null,null,70,70,70]
["社会体育指导与管理/体育教育/运动康复","河北环境工程学院","社会体育指导与管理",35,70,105,"体育","教育学",2,"校本部",null,null,105,105,105]
["市场营销","河北环境工程学院","市场营销",0,75,75,"经管","管理学",2,"校本部",null,null,75,75,75]
["计算机科学与技术/软件工程/数字媒体技术/网络工程/物联网工程","河北环境工程学院","物联网工程",35,35,70,"理工","工学",2,"校本部",null,null,70,70,70]
["物流管理/物流工程","河北环境工程学院","物流管理",0,75,75,"经管","管理学",2,"校本部",null,null,75,75,75]
["风景园林/园林","河北环境工程学院","园林",35,70,105,"农学","农学",2,"校本部",null,null,105,105,105]
["车辆工程/机械电子工程/机械工程/机械设计制造及其自动化/汽车服务工程","河北建筑工程学院","车辆工程",0,25,25,"理工","工学",2,"校本部",null,null,25,25,25]
["城市地下空间工程/道路桥梁与渡河工程/建筑学/勘查技术与工程/历史建筑保护工程/土木工程","河北建筑工程学院","道路桥梁与渡河工程",40,40,80,"理工","工学 ",2,"校本部",null,null,80,80,80]
["电气工程及其自动化/电气工程与智能控制/电子信息工程/轨道交通信号与控制/自动化","河北建筑工程学院","电气工程及其自动化",30,10,40,"理工","工学",2,"校本部",null,null,40,40,40]
["电气工程及其自动化/电气工程与智能控制/电子信息工程/轨道交通信号与控制/自动化","河北建筑工程学院","电子信息工程",0,40,40,"理工","工学",2,"校本部",null,null,40,40,40]
["环境工程/环境科学/环境生态工程/环保设备工程","河北建筑工程学院","环境工程",0,45,45,"理工","工学",2,"校本部",null,null,45,45,45]
["车辆工程/机械电子工程/机械工程/机械设计制造及其自动化/汽车服务工程","河北建筑工程学院","机械电子工程",45,0,45,"理工","工学 ",2,"校本部",null,null,45,45,45]
["车辆工程/机械电子工程/机械工程/机械设计制造及其自动化/汽车服务工程","河北建筑工程学院","机械设计制造及其自动化",45,0,45,"理工","工学",2,"校本部",null,null,45,45,45]
["计算机科学与技术/软件工程/数字媒体技术/网络工程/物联网工程","河北建筑工程学院","计算机科学与技术",80,0,80,"理工","工学",2,"校本部",null,null,80,80,80]
["能源与动力工程","河北建筑工程学院","能源与动力工程",20,10,30,"理工","工学",2,"校本部",null,null,30,30,30]
["城市地下空间工程/道路桥梁与渡河工程/建筑学/勘查技术与工程/历史建筑保护工程/土木工程","河北建筑工程学院","土木工程",80,0,80,"理工","工学",2,"校本部",null,null,80,80,80]
["计算机科学与技术/软件工程/数字媒体技术/网络工程/物联网工程","河北建筑工程学院","网络工程",15,25,40,"理工","工学",2,"校本部",null,null,40,40,40]
["计算机科学与技术/软件工程/数字媒体技术/网络工程/物联网工程","河北建筑工程学院","物联网工程",15,25,40,"理工","工学 ",2,"校本部",null,15,40,55,55]
["数学与应用数学/信息与计算科学","河北建筑工程学院","信息与计算科学",0,35,35,"理工","理学",2,"校本部",15,null,20,20,20]
["翻译/商务英语/英语","河北建筑工程学院","英语",35,45,80,"外语","文学",2,"校本部",null,null,80,80,80]
["保险学","河北金融学院","保险学",50,50,100,"经管","经济学",2,"校本部",null,null,100,100,100]
["财务管理/会计学/审计学","河北金融学院","财务管理",50,0,50,"经管","管理学",2,"校本部",null,null,50,50,50]
["工商管理","河北金融学院","工商管理",0,50,50,"经管","管理学",2,"校本部",null,null,50,50,50]
["国际经济与贸易","河北金融学院","国际经济与贸易",50,0,50,"经管","经济学",2,"校本部",null,null,50,50,50]
["计算机科学与技术/软件工程/数字媒体技术/网络工程/物联网工程","河北金融学院","计算机科学与技术",0,50,50,"理工","工学",2,"校本部",null,null,50,50,50]
["市场营销","河北金融学院","市场营销",0,50,50,"经管","管理学",2,"校本部",null,null,50,50,50]
["金融工程/金融学/投资学","河北金融学院","投资学",50,0,50,"经管","经济学",2,"校本部",null,null,50,50,50]
["财务管理/会计学/审计学","河北经贸大学经济管理学院","财务管理",0,40,40,"经管","管理学",2,"校本部",null,null,40,40,40]
["财务管理/会计学/审计学","河北经贸大学经济管理学院","会计学",0,90,90,"经管","管理学",2,"校本部",null,null,90,90,90]
["计算机科学与技术/软件工程/数字媒体技术/网络工程/物联网工程","河北经贸大学经济管理学院","计算机科学与技术",0,90,90,"理工","工学",2,"校本部",null,null,90,90,90]
["财务管理/会计学/审计学","河北经贸大学经济管理学院","审计学",0,40,40,"经管","管理学",2,"校本部",null,null,40,40,40]
["市场营销","河北经贸大学经济管理学院","市场营销",0,40,40,"经管","管理学",2,"校本部",null,null,{"$f":"F194-K194","v":40},{"$f":"M194+L194","v":40},40]
["工商管理","河北科技大学","工商管理",60,0,60,"经管","管理学",2,"校本部",null,null,60,60,60]
["材料化学/化学工程与工艺/制药工程","河北科技大学","化学工程与工艺",30,0,30,"理工","工学 ",2,"校本部",10,null,20,20,20]
["车辆工程/机械电子工程/机械工程/机械设计制造及其自动化/汽车服务工程","河北科技大学","机械电子工程",40,0,40,"理工","工学 ",2,"校本部",null,null,40,40,40]
["车辆工程/机械电子工程/机械工程/机械设计制造及其自动化/汽车服务工程","河北科技大学","机械设计制造及其自动化",40,0,40,"理工","工学 ",2,"校本部",null,null,40,40,40]
["市场营销","河北科技大学","市场营销",45,0,45,"经管","管理学",2,"校本部",null,null,45,45,45]
["城市地下空间工程/道路桥梁与渡河工程/建筑学/勘查技术与工程/历史建筑保护工程/土木工程","河北科技大学","土木工程",70,0,70,"理工","工学 ",2,"校本部",null,null,70,70,70]
["化学/应用化学","河北科技大学","应用化学",35,0,35,"理工","理学 ",2,"校本部",null,10,35,45,45]
["电气工程及其自动化/电气工程与智能控制/电子信息工程/轨道交通信号与控制/自动化","河北科技大学","自动化",40,0,40,"理工","工学 ",2,"校本部",null,null,40,40,40]
["工商管理","河北科技大学理工学院","工商管理",0,35,35,"经管","管理学",2,"河北科技大学校区",null,null,35,35,35]
["翻译/商务英语/英语","河北科技大学理工学院","商务英语",0,25,{"$f":"SUM(D204:E204)","v":25},"外语","文学",2,"河北科技大学校区",null,null,25,25,25]
["市场营销","河北科技大学理工学院","市场营销",0,35,35,"经管","管理学",2,"河北科技大学校区",null,null,35,35,35]
["计算机科学与技术/软件工程/数字媒体技术/网络工程/物联网工程","河北科技大学理工学院","网络工程",0,60,60,"理工","工学",2,"河北科技大学校区",null,null,60,60,60]
["翻译/商务英语/英语","河北科技大学理工学院","英语",0,25,25,"外语","文学",2,"河北科技大学校区",null,null,25,25,25]
["法学","河北科技师范学院","法学",60,0,60,"文史","法学",2,"校本部",null,null,60,60,60]
["工程管理/工程造价","河北科技师范学院","工程管理",30,0,30,"经管","管理学 ",2,"校本部",null,null,30,30,30]
["社会体育指导与管理/体育教育/运动康复","河北科技师范学院","运动康复",15,0,15,"体育","教育学",2,"校本部",null,null,15,15,15]
["播音与主持艺术","河北科技学院","播音与主持艺术",10,10,20,"艺术","艺术学",2,"校本部",10,null,10,10,10]
["财务管理/会计学/审计学","河北科技学院","财务管理",30,35,65,"经管","管理学",2,"校本部",5,null,60,60,60]
["车辆工程/机械电子工程/机械工程/机械设计制造及其自动化/汽车服务工程","河北科技学院","车辆工程",30,30,60,"理工","工学",2,"校本部",null,null,60,60,60]
["电气工程及其自动化/电气工程与智能控制/电子信息工程/轨道交通信号与控制/自动化","河北科技学院","电气工程及其自动化",30,35,65,"理工","工学",2,"校本部",null,null,65,65,65]
["工程管理/工程造价","河北科技学院","工程管理",50,30,80,"经管","管理学",2,"校本部",null,null,80,80,80]
["工程管理/工程造价","河北科技学院","工程造价",30,30,60,"经管","管理学 ",2,"校本部",null,20,60,80,80]
["广播电视编导/摄影","河北科技学院","广播电视编导",20,15,35,"艺术","艺术学",2,"校本部",5,null,30,30,30]
["环境设计","河北科技学院","环境设计",20,20,40,"艺术","艺术学",2,"校本部",10,null,30,30,30]
["财务管理/会计学/审计学","河北科技学院","会计学",30,35,65,"经管","管理学",2,"校本部",5,null,60,60,60]
["车辆工程/机械电子工程/机械工程/机械设计制造及其自动化/汽车服务工程","河北科技学院","机械电子工程",30,30,60,"理工","工学",2,"校本部",10,null,50,50,50]
["车辆工程/机械电子工程/机械工程/机械设计制造及其自动化/汽车服务工程","河北科技学院","机械设计制造及其自动化",30,30,60,"理工","工学",2,"校本部",null,null,60,60,60]
["计算机科学与技术/软件工程/数字媒体技术/网络工程/物联网工程","河北科技学院","计算机科学与技术",40,55,95,"理工","工学",2,"校本部",null,25,95,120,120]
["车辆工程/机械电子工程/机械工程/机械设计制造及其自动化/汽车服务工程","河北科技学院","汽车服务工程",30,30,60,"理工","工学",2,"校本部",null,null,60,60,60]
["计算机科学与技术/软件工程/数字媒体技术/网络工程/物联网工程","河北科技学院","软件工程",40,55,95,"理工","工学",2,"校本部",null,20,95,115,115]
["视觉传达设计","河北科技学院","视觉传达设计",10,15,25,"艺术","艺术学",2,"校本部",null,null,25,25,25]
["金融工程/金融学/投资学","河北科技学院","投资学",20,10,30,"经管","经济学",2,"校本部",10,null,20,20,20]
["城市地下空间工程/道路桥梁与渡河工程/建筑学/勘查技术与工程/历史建筑保护工程/土木工程","河北科技学院","土木工程",30,35,65,"理工","工学",2,"校本部",null,null,65,65,65]
["舞蹈编导/舞蹈表演/舞蹈学/艺术教育（舞蹈）/音乐学（舞蹈）","河北科技学院","舞蹈表演",20,10,30,"艺术","艺术学",2,"校本部",10,null,20,20,20]
["物流管理/物流工程","河北科技学院","物流管理",50,10,60,"经管","管理学",2,"校本部",null,null,60,60,60]
["播音与主持艺术","河北美术学院","播音与主持艺术",0,55,55,"艺术","艺术学",2,"校本部",null,null,55,55,55]
["产品设计/服装与服饰设计/绘画/美术学","河北美术学院","产品设计",30,0,30,"艺术","艺术学",2,"校本部",null,null,30,30,30]
["雕塑","河北美术学院","雕塑",20,15,35,"艺术","艺术学",2,"校本部",null,null,35,35,35]
["动画","河北美术学院","动画",70,20,90,"艺术","艺术学",2,"校本部",null,null,90,90,90]
["产品设计/服装与服饰设计/绘画/美术学","河北美术学院","服装与服饰设计",40,0,40,"艺术","艺术学",2,"校本部",null,null,40,40,40]
["广播电视编导/摄影","河北美术学院","广播电视编导",50,50,100,"艺术","艺术学",2,"校本部",null,null,100,100,100]
["环境设计","河北美术学院","环境设计",80,100,180,"艺术","艺术学",2,"校本部",null,null,180,180,180]
["产品设计/服装与服饰设计/绘画/美术学","河北美术学院","绘画",40,30,70,"艺术","艺术学",2,"校本部",null,null,70,70,70]
["产品设计/服装与服饰设计/绘画/美术学","河北美术学院","美术学",80,70,150,"艺术","艺术学",2,"校本部",null,20,150,170,170]
["视觉传达设计","河北美术学院","视觉传达设计",40,60,100,"艺术","艺术学",2,"校本部",null,null,100,100,100]
["书法学","河北美术学院","书法学",100,100,200,"艺术","艺术学",2,"校本部",20,null,180,180,180]
["播音与主持艺术","河北民族师范学院","播音与主持艺术",0,30,30,"艺术","艺术学",2,"校本部",30,null,0,0,0]
["舞蹈编导/舞蹈表演/舞蹈学/艺术教育（舞蹈）/音乐学（舞蹈）","河北民族师范学院","舞蹈学",10,10,20,"艺术","艺术学",2,"校本部",10,null,10,10,10]
["小学教育","河北民族师范学院","小学教育",50,0,50,"文史","教育学",2,"校本部",null,30,50,80,80]
["学前教育","河北民族师范学院","学前教育",50,0,50,"文史","教育学",2,"校本部",null,10,50,60,60]
["动物医学","河北农业大学","动物医学",50,0,50,"农学","农学",2,"校本部",null,null,50,50,50]
["财务管理/会计学/审计学","河北农业大学","会计学",80,0,80,"经管","管理学",2,"校本部",null,null,80,80,80]
["秘书学","河北农业大学","秘书学",70,0,70,"文史","文学",2,"校本部",null,null,70,70,70]
["市场营销","河北农业大学","市场营销",90,0,90,"经管","管理学",2,"校本部",null,null,90,90,90]
["水产养殖学","河北农业大学","水产养殖学",30,0,30,"农学","农学",2,"秦皇岛校区",null,null,30,30,30]
["翻译/商务英语/英语","河北农业大学","英语",80,0,80,"外语","文学",2,"校本部",null,null,80,80,80]
["计算机科学与技术/软件工程/数字媒体技术/网络工程/物联网工程","河北师范大学","计算机科学与技术",0,100,100,"理工","工学",2,"河北师大附属民族学院",null,null,100,100,100]
["学前教育","河北师范大学","学前教育",80,0,80,"文史","教育学",2,"校本部",null,null,80,80,80]
["翻译/商务英语/英语","河北师范大学","英语",0,100,100,"外语","文学",2,"河北师大附属民族学院",null,null,100,100,100]
["汉语国际教育/汉语言文学","河北师范大学汇华学院","汉语言文学",0,120,120,"文史","文学",2,"校本部",null,null,120,120,120]
["思想政治教育","河北师范大学汇华学院","思想政治教育",0,60,60,"文史","法学",2,"校本部",null,null,60,60,60]
["财务管理/会计学/审计学","河北水利电力学院","财务管理",20,80,100,"经管","管理学",2,"校本部",30,null,70,70,70]
["测绘工程","河北水利电力学院","测绘工程",20,0,20,"理工","工学",2,"校本部",null,null,20,20,20]
["城市地下空间工程/道路桥梁与渡河工程/建筑学/勘查技术与工程/历史建筑保护工程/土木工程","河北水利电力学院","城市地下空间工程",25,35,60,"理工","工学",2,"校本部",null,null,{"$f":"F258-K258","v":60},{"$f":"M258+L258","v":60},60]
["城市地下空间工程/道路桥梁与渡河工程/建筑学/勘查技术与工程/历史建筑保护工程/土木工程","河北水利电力学院","道路桥梁与渡河工程",15,55,70,"理工","工学",2,"校本部",null,null,70,70,70]
["电气工程及其自动化/电气工程与智能控制/电子信息工程/轨道交通信号与控制/自动化","河北水利电力学院","电气工程及其自动化",15,45,60,"理工","工学",2,"校本部",null,30,60,90,90]
["电气工程及其自动化/电气工程与智能控制/电子信息工程/轨道交通信号与控制/自动化","河北水利电力学院","电气工程与智能控制",25,35,60,"理工","工学",2,"校本部",null,30,60,90,90]
["电子商务/国际商务","河北水利电力学院","国际商务",20,30,50,"经管","管理学",2,"校本部",20,null,30,30,30]
["车辆工程/机械电子工程/机械工程/机械设计制造及其自动化/汽车服务工程","河北水利电力学院","机械电子工程",15,45,60,"理工","工学",2,"校本部",null,null,60,60,60]
["城市地下空间工程/道路桥梁与渡河工程/建筑学/勘查技术与工程/历史建筑保护工程/土木工程","河北水利电力学院","勘查技术与工程",15,55,70,"理工","工学",2,"校本部",null,null,70,70,70]
["计算机科学与技术/软件工程/数字媒体技术/网络工程/物联网工程","河北水利电力学院","软件工程",20,70,90,"理工","工学",2,"校本部",null,null,90,90,90]
["计算机科学与技术/软件工程/数字媒体技术/网络工程/物联网工程","河北水利电力学院","数字媒体技术",20,40,60,"理工","工学",2,"校本部",null,10,60,70,70]
["水利水电工程","河北水利电力学院","水利水电工程",30,60,90,"理工","工学",2,"校本部",20,null,70,70,70]
["电气工程及其自动化/电气工程与智能控制/电子信息工程/轨道交通信号与控制/自动化","河北水利电力学院","自动化",25,35,{"$f":"SUM(D268:E268)","v":60},"理工","工学",2,"校本部",null,null,60,60,60]
["社会体育指导与管理/体育教育/运动康复","河北体育学院","体育教育",100,0,100,"体育","教育学 ",2,"校本部",null,null,100,100,100]
["阿拉伯语","河北外国语学院","阿拉伯语",15,7,22,"外语","文学",2,"校本部",null,null,22,22,22]
["播音与主持艺术","河北外国语学院","播音与主持艺术",5,5,10,"艺术","艺术学",2,"校本部",5,null,5,5,5]
["财务管理/会计学/审计学","河北外国语学院","财务管理",25,25,50,"经管","管理学",2,"校本部",10,null,40,40,40]
["朝鲜语","河北外国语学院","朝鲜语",20,0,20,"外语","文学",2,"校本部",null,null,20,20,20]
["德语","河北外国语学院","德语",8,10,18,"外语","文学",2,"校本部",null,null,18,18,18]
["电子商务/国际商务","河北外国语学院","电子商务",10,5,15,"经管","管理学",2,"校本部",5,null,10,10,10]
["俄语","河北外国语学院","俄语",15,0,15,"外语","文学",2,"校本部",null,null,15,15,15]
["法语","河北外国语学院","法语",22,0,22,"外语","文学",2,"校本部",null,null,22,22,22]
["翻译/商务英语/英语","河北外国语学院","翻译",20,10,30,"外语","文学",2,"校本部",null,null,30,30,30]
["工程管理/工程造价","河北外国语学院","工程造价",35,20,55,"经管","管理学",2,"校本部",null,null,55,55,55]
["国际经济与贸易","河北外国语学院","国际经济与贸易",10,10,20,"经管","经济学",2,"校本部",null,null,20,20,20]
["汉语国际教育/汉语言文学","河北外国语学院","汉语国际教育",30,20,50,"文史","文学",2,"校本部",null,null,50,50,50]
["护理学/护理学（应用型实验班）/助产学","河北外国语学院","护理学",30,40,70,"医学","理学",2,"校本部",null,null,70,70,70]
["城市地下空间工程/道路桥梁与渡河工程/建筑学/勘查技术与工程/历史建筑保护工程/土木工程","河北外国语学院","建筑学",15,25,40,"理工","工学",2,"校本部",null,null,40,40,40]
["金融工程/金融学/投资学","河北外国语学院","金融工程",15,15,30,"经管","经济学",2,"校本部",10,null,20,20,20]
["康复治疗学","河北外国语学院","康复治疗学",15,20,35,"医学","理学",2,"校本部",null,null,35,35,35]
["葡萄牙语","河北外国语学院","葡萄牙语",5,0,5,"外语","文学",2,"校本部",null,null,5,5,5]
["日语","河北外国语学院","日语",35,36,71,"外语","文学",2,"校本部",15,null,56,56,56]
["计算机科学与技术/软件工程/数字媒体技术/网络工程/物联网工程","河北外国语学院","软件工程",20,10,30,"理工","工学",2,"校本部",null,null,30,30,30]
["翻译/商务英语/英语","河北外国语学院","商务英语",15,10,25,"外语","文学",2,"校本部",null,5,25,30,30]
["财务管理/会计学/审计学","河北外国语学院","审计学",20,0,20,"经管","管理学",2,"校本部",null,null,20,20,20]
["城市地下空间工程/道路桥梁与渡河工程/建筑学/勘查技术与工程/历史建筑保护工程/土木工程","河北外国语学院","土木工程",20,30,50,"理工","工学",2,"校本部",null,null,50,50,50]
["计算机科学与技术/软件工程/数字媒体技术/网络工程/物联网工程","河北外国语学院","网络工程",20,10,30,"理工","工学",2,"校本部",null,null,30,30,30]
["广播电视学/网络与新媒体/新闻学","河北外国语学院","网络与新媒体",10,10,20,"文史","文学",2,"校本部",null,null,20,20,20]
["西班牙语","河北外国语学院","西班牙语",35,0,35,"外语","文学",2,"校本部",null,null,35,35,35]
["小学教育","河北外国语学院","小学教育",30,80,110,"文史","教育学",2,"校本部",null,20,110,130,130]
["学前教育","河北外国语学院","学前教育",10,52,62,"文史","教育学",2,"校本部",null,30,62,92,92]
["艺术教育（声乐）/音乐表演（声乐）/音乐学（声乐）","河北外国语学院","艺术教育（声乐）",5,10,15,"艺术","艺术学",2,"校本部",null,null,15,15,15]
["舞蹈编导/舞蹈表演/舞蹈学/艺术教育（舞蹈）/音乐学（舞蹈）","河北外国语学院","艺术教育（舞蹈）",5,10,15,"艺术","艺术学",2,"校本部",10,null,5,5,5]
["意大利语","河北外国语学院","意大利语",5,0,5,"外语","文学",2,"校本部",null,null,5,5,5]
["艺术教育（声乐）/音乐表演（声乐）/音乐学（声乐）","河北外国语学院","音乐表演（声乐）",5,10,15,"艺术","艺术学",2,"校本部",null,null,15,15,15]
["翻译/商务英语/英语","河北外国语学院","英语",20,20,40,"外语","文学",2,"校本部",null,null,40,40,40]
["护理学/护理学（应用型实验班）/助产学","河北医科大学","护理学",90,0,90,"医学","理学",2,"沧州医专校区",null,null,90,90,90]
["护理学/护理学（应用型实验班）/助产学","河北医科大学","护理学（应用型实验班）",30,0,30,"医学","理学",2,"河北女子职技校区",null,null,30,30,30]
["康复治疗学","河北医科大学","康复治疗学",90,60,150,"医学","理学",2,"邢台医专校区",null,null,150,150,150]
["临床医学","河北医科大学","临床医学",80,0,80,"医学","医学",3,"沧州医专校区",null,null,80,80,80]
["药学","河北医科大学","药学",40,0,40,"医学","理学",2,"沧州医专校区",null,null,40,40,40]
["医学检验技术","河北医科大学","医学检验技术",30,0,30,"医学","理学",2,"沧州医专校区",null,null,30,30,30]
["医学影像技术","河北医科大学","医学影像技术",30,0,30,"医学","理学",2,"沧州医专校区",null,null,30,30,30]
["护理学/护理学（应用型实验班）/助产学","河北医科大学","助产学",60,40,100,"医学","理学",2,"邢台医专校区",null,null,100,100,100]
["针灸推拿学","河北中医学院","针灸推拿学",0,10,10,"医学","医学 ",3,"杏苑校区",null,null,10,10,10]
["中医学","河北中医学院","中医学",0,40,40,"医学","医学 ",3,"杏苑校区",null,null,40,40,40]
["电气工程及其自动化/电气工程与智能控制/电子信息工程/轨道交通信号与控制/自动化","衡水学院","电子信息工程",60,0,60,"理工","工学",2,"校本部",null,null,60,60,60]
["广播电视学/网络与新媒体/新闻学","衡水学院","广播电视学",40,5,45,"文史","文学",2,"校本部",null,null,45,45,45]
["广告学","衡水学院","广告学",40,5,45,"文史","文学",2,"校本部",null,null,45,45,45]
["汉语国际教育/汉语言文学","衡水学院","汉语言文学",120,0,120,"文史","文学",2,"校本部",null,null,120,120,120]
["环境设计","衡水学院","环境设计",30,0,30,"艺术","艺术学",2,"校本部",null,null,30,30,30]
["环境工程/环境科学/环境生态工程/环保设备工程","衡水学院","环境生态工程",20,20,40,"理工","工学",2,"校本部",null,null,40,40,40]
["计算机科学与技术/软件工程/数字媒体技术/网络工程/物联网工程","衡水学院","计算机科学与技术",40,0,40,"理工","工学",2,"校本部",null,null,40,40,40]
["产品设计/服装与服饰设计/绘画/美术学","衡水学院","美术学",10,0,10,"艺术","艺术学",2,"校本部",null,null,10,10,10]
["社会体育指导与管理/体育教育/运动康复","衡水学院","社会体育指导与管理",30,10,40,"体育","教育学",2,"校本部",null,null,40,40,40]
["生物科学","衡水学院","生物科学",20,20,40,"理工","理学",2,"校本部",null,null,40,40,40]
["视觉传达设计","衡水学院","视觉传达设计",30,0,30,"艺术","艺术学",2,"校本部",null,null,{"$f":"F322-K322","v":30},{"$f":"M322+L322","v":30},30]
["数学与应用数学/信息与计算科学","衡水学院","数学与应用数学",20,0,20,"理工","理学",2,"校本部",null,null,20,20,20]
["思想政治教育","衡水学院","思想政治教育",40,20,60,"文史","法学",2,"校本部",null,15,60,75,75]
["社会体育指导与管理/体育教育/运动康复","衡水学院","体育教育",30,10,40,"体育","教育学",2,"校本部",null,null,40,40,40]
["舞蹈编导/舞蹈表演/舞蹈学/艺术教育（舞蹈）/音乐学（舞蹈）","衡水学院","舞蹈学",20,10,30,"艺术","艺术学",2,"校本部",10,null,20,20,20]
["学前教育","衡水学院","学前教育",80,20,100,"文史","教育学",2,"校本部",null,null,100,100,100]
["音乐表演（器乐）/音乐学（器乐）","衡水学院","音乐学（器乐）",10,5,15,"艺术","艺术学",2,"校本部",5,null,10,10,10]
["艺术教育（声乐）/音乐表演（声乐）/音乐学（声乐）","衡水学院","音乐学（声乐）",20,5,25,"艺术","艺术学",2,"校本部",null,null,25,25,25]
["翻译/商务英语/英语","衡水学院","英语",40,20,60,"外语","文学",2,"校本部",null,null,60,60,60]
["风景园林/园林","衡水学院","园林",40,0,40,"农学","农学",2,"校本部",null,null,40,40,40]
["材料成型及控制工程","华北理工大学","材料成型及控制工程",0,10,{"$f":"SUM(D332:E332)","v":10},"理工","工学",2,"曹妃甸校区",null,null,10,10,10]
["材料化学/化学工程与工艺/制药工程","华北理工大学","材料化学",0,30,30,"理工","理学",2,"曹妃甸校区",10,null,20,20,20]
["测绘工程","华北理工大学","测绘工程",15,0,15,"理工","工学",2,"曹妃甸校区",null,null,15,15,15]
["法学","华北理工大学","法学",0,90,90,"文史","法学",2,"曹妃甸校区",null,30,90,120,120]
["工程管理/工程造价","华北理工大学","工程管理",0,90,90,"经管","管理学",2,"曹妃甸校区",null,null,90,90,90]
["工商管理","华北理工大学","工商管理",35,85,120,"经管","管理学",2,"曹妃甸校区",null,null,120,120,120]
["护理学/护理学（应用型实验班）/助产学","华北理工大学","护理学",0,75,75,"医学","理学",2,"曹妃甸校区",null,50,75,125,125]
["环境工程/环境科学/环境生态工程/环保设备工程","华北理工大学","环境工程",35,85,120,"理工","工学",2,"曹妃甸校区",null,null,120,120,120]
["车辆工程/机械电子工程/机械工程/机械设计制造及其自动化/汽车服务工程","华北理工大学","机械设计制造及其自动化",35,15,50,"理工","工学",2,"曹妃甸校区",null,null,50,50,50]
["计算机科学与技术/软件工程/数字媒体技术/网络工程/物联网工程","华北理工大学","计算机科学与技术",40,0,40,"理工","工学",2,"曹妃甸校区",null,null,40,40,40]
["康复治疗学","华北理工大学","康复治疗学",0,30,30,"医学","理学",2,"曹妃甸校区",null,20,30,50,50]
["能源与动力工程","华北理工大学","能源与动力工程",20,10,30,"理工","工学",2,"曹妃甸校区",null,null,30,30,30]
["数学与应用数学/信息与计算科学","华北理工大学","数学与应用数学",0,60,60,"理工","理学",2,"曹妃甸校区",30,null,30,30,30]
["城市地下空间工程/道路桥梁与渡河工程/建筑学/勘查技术与工程/历史建筑保护工程/土木工程","华北理工大学","土木工程",30,0,30,"理工","工学",2,"曹妃甸校区",null,null,30,30,30]
["数学与应用数学/信息与计算科学","华北理工大学","信息与计算科学",0,60,60,"理工","理学",2,"曹妃甸校区",60,null,0,0,0]
["药学","华北理工大学","药学",0,60,60,"医学","理学",2,"曹妃甸校区",null,null,60,60,60]
["应用心理学","华北理工大学","应用心理学",0,90,90,"文史","理学",2,"曹妃甸校区",null,null,90,90,90]
["法学","华北理工大学冀唐学院","法学",0,10,10,"文史","法学",2,"校本部",null,null,10,10,10]
["护理学/护理学（应用型实验班）/助产学","华北理工大学冀唐学院","护理学",0,100,100,"医学","理学",2,"校本部",null,null,100,100,100]
["药学","华北理工大学冀唐学院","药学",0,35,35,"医学","理学",2,"校本部",null,null,35,35,35]
["医学影像技术","华北理工大学冀唐学院","医学影像技术",0,40,40,"医学","理学 ",2,"校本部",null,null,40,40,40]
["翻译/商务英语/英语","华北理工大学冀唐学院","英语",0,15,15,"英语","文学",2,"校本部",null,null,15,15,15]
["财务管理/会计学/审计学","华北理工大学轻工学院","财务管理",0,45,45,"经管","管理学",2,"校本部",null,null,45,45,45]
["产品设计/服装与服饰设计/绘画/美术学","华北理工大学轻工学院","产品设计",0,45,45,"艺术","艺术学",2,"校本部",45,null,0,0,0]
["工程管理/工程造价","华北理工大学轻工学院","工程造价",0,45,45,"理工","工学",2,"校本部",null,null,45,45,45]
["工商管理","华北理工大学轻工学院","工商管理",0,45,45,"经管","管理学",2,"校本部",null,null,45,45,45]
["环境设计","华北理工大学轻工学院","环境设计",0,50,50,"艺术","艺术学",2,"校本部",20,null,30,30,30]
["车辆工程/机械电子工程/机械工程/机械设计制造及其自动化/汽车服务工程","华北理工大学轻工学院","机械设计制造及其自动化",0,45,45,"理工","工学",2,"校本部",null,null,45,45,45]
["计算机科学与技术/软件工程/数字媒体技术/网络工程/物联网工程","华北理工大学轻工学院","计算机科学与技术",0,45,45,"理工","工学",2,"校本部",null,null,45,45,45]
["社会体育指导与管理/体育教育/运动康复","华北理工大学轻工学院","社会体育指导与管理",0,45,45,"体育","教育学",2,"校本部",null,null,45,45,45]
["市场营销","华北理工大学轻工学院","市场营销",0,45,45,"经管","管理学",2,"校本部",null,null,45,45,45]
["视觉传达设计","华北理工大学轻工学院","视觉传达设计",0,45,45,"艺术","艺术学",2,"校本部",10,null,35,35,35]
["学前教育","华北理工大学轻工学院","学前教育",0,45,45,"文史","教育学",2,"校本部",null,75,45,120,120]
["财务管理/会计学/审计学","廊坊师范学院","财务管理",40,70,110,"经管","管理学 ",2,"固安校区",50,null,60,60,60]
["产品设计/服装与服饰设计/绘画/美术学","廊坊师范学院","产品设计",35,0,35,"艺术","艺术学",2,"校本部",null,null,35,35,35]
["电气工程及其自动化/电气工程与智能控制/电子信息工程/轨道交通信号与控制/自动化","廊坊师范学院","电气工程及其自动化",30,0,30,"理工","工学 ",2,"校本部",null,null,30,30,30]
["法学","廊坊师范学院","法学",75,0,75,"文史","法学 ",2,"校本部",null,null,75,75,75]
["国际经济与贸易","廊坊师范学院","国际经济与贸易",40,80,120,"经管","经济学 ",2,"固安校区",null,null,120,120,120]
["城市地下空间工程/道路桥梁与渡河工程/建筑学/勘查技术与工程/历史建筑保护工程/土木工程","廊坊师范学院","历史建筑保护工程",20,0,20,"理工","工学 ",2,"校本部",null,null,20,20,20]
["产品设计/服装与服饰设计/绘画/美术学","廊坊师范学院","美术学",20,0,20,"艺术","艺术学 ",2,"校本部",null,null,20,20,20]
["计算机科学与技术/软件工程/数字媒体技术/网络工程/物联网工程","廊坊师范学院","软件工程",50,0,50,"理工","工学",2,"校本部",null,null,50,50,50]
["食品科学与工程","廊坊师范学院","食品科学与工程",35,0,35,"理工","工学 ",2,"校本部",null,null,35,35,35]
["思想政治教育","廊坊师范学院","思想政治教育",85,0,85,"文史","教育学 ",2,"校本部",null,50,85,135,135]
["社会体育指导与管理/体育教育/运动康复","廊坊师范学院","体育教育",30,0,30,"体育","教育学 ",2,"校本部",null,null,30,30,30]
["小学教育","廊坊师范学院","小学教育",60,0,60,"文史","教育学 ",2,"校本部",null,null,60,60,60]
["心理学","廊坊师范学院","心理学",50,0,50,"理工","理学 ",2,"校本部",null,null,50,50,50]
["广播电视学/网络与新媒体/新闻学","廊坊师范学院","新闻学",50,0,50,"文史","文学 ",2,"校本部",null,null,50,50,50]
["学前教育","廊坊师范学院","学前教育",50,0,50,"文史","教育学 ",2,"校本部",null,null,50,50,50]
["翻译/商务英语/英语","廊坊师范学院","英语",30,0,30,"外语","文学 ",2,"校本部",null,null,30,30,30]
["工程管理/工程造价","石家庄铁道大学","工程管理",35,0,35,"经管","管理学",2,"校本部",null,null,35,35,35]
["车辆工程/机械电子工程/机械工程/机械设计制造及其自动化/汽车服务工程","石家庄铁道大学","机械设计制造及其自动化",35,0,35,"理工","工学",2,"校本部",null,null,35,35,35]
["城市地下空间工程/道路桥梁与渡河工程/建筑学/勘查技术与工程/历史建筑保护工程/土木工程","石家庄铁道大学","土木工程",35,0,35,"理工","工学",2,"校本部",null,null,35,35,35]
["财务管理/会计学/审计学","石家庄铁道大学四方学院","财务管理",35,0,35,"经管","管理学",2,"南校区",null,null,35,35,35]
["产品设计/服装与服饰设计/绘画/美术学","石家庄铁道大学四方学院","产品设计",0,30,30,"艺术","艺术学",2,"西校区",null,null,30,30,30]
["电气工程及其自动化/电气工程与智能控制/电子信息工程/轨道交通信号与控制/自动化","石家庄铁道大学四方学院","电气工程及其自动化",60,0,60,"理工","工学 ",2,"南校区",null,null,{"$f":"F386-K386","v":60},{"$f":"M386+L386","v":60},60]
["电气工程及其自动化/电气工程与智能控制/电子信息工程/轨道交通信号与控制/自动化","石家庄铁道大学四方学院","电子信息工程",60,0,60,"理工","工学 ",2,"南校区",null,null,60,60,60]
["工程管理/工程造价","石家庄铁道大学四方学院","工程管理",70,0,70,"经管","管理学",2,"南校区",null,null,70,70,70]
["工程管理/工程造价","石家庄铁道大学四方学院","工程造价",0,60,60,"理工","工学",2,"西校区",null,null,60,60,60]
["电气工程及其自动化/电气工程与智能控制/电子信息工程/轨道交通信号与控制/自动化","石家庄铁道大学四方学院","轨道交通信号与控制",60,0,60,"理工","工学 ",2,"南校区",null,null,60,60,60]
["国际经济与贸易","石家庄铁道大学四方学院","国际经济与贸易",70,0,70,"经管","经济学 ",2,"南校区",null,null,70,70,70]
["环境设计","石家庄铁道大学四方学院","环境设计",0,30,30,"艺术","艺术学",2,"西校区",null,null,30,30,30]
["财务管理/会计学/审计学","石家庄铁道大学四方学院","会计学",70,0,70,"经管","管理学",2,"南校区",null,null,70,70,70]
["车辆工程/机械电子工程/机械工程/机械设计制造及其自动化/汽车服务工程","石家庄铁道大学四方学院","机械设计制造及其自动化",0,60,60,"理工","工学",2,"西校区",null,null,60,60,60]
["计算机科学与技术/软件工程/数字媒体技术/网络工程/物联网工程","石家庄铁道大学四方学院","计算机科学与技术",35,35,70,"理工","工学 ",2,"南校区",null,null,70,70,70]
["金融工程/金融学/投资学","石家庄铁道大学四方学院","金融学",35,35,{"$f":"SUM(D396:E396)","v":70},"经管","经济学 ",2,"南校区",null,null,70,70,70]
["市场营销","石家庄铁道大学四方学院","市场营销",0,60,60,"经管","管理学",2,"南校区",null,null,60,60,60]
["视觉传达设计","石家庄铁道大学四方学院","视觉传达设计",0,30,30,"艺术","艺术学",2,"西校区",null,null,30,30,30]
["城市地下空间工程/道路桥梁与渡河工程/建筑学/勘查技术与工程/历史建筑保护工程/土木工程","石家庄铁道大学四方学院","土木工程",60,0,60,"理工","工学 ",2,"南校区",null,null,60,60,60]
["翻译/商务英语/英语","石家庄铁道大学四方学院","英语",35,0,35,"外语","文学 ",2,"南校区",null,null,35,35,35]
["电气工程及其自动化/电气工程与智能控制/电子信息工程/轨道交通信号与控制/自动化","石家庄铁道大学四方学院","自动化",60,0,60,"理工","工学 ",2,"南校区",null,null,60,60,60]
["动画","石家庄学院","动画",25,0,25,"艺术","艺术学 ",2,"校本部",null,null,25,25,25]
["法学","石家庄学院","法学",30,0,30,"文史","法学",2,"校本部",null,null,30,30,30]
["汉语国际教育/汉语言文学","石家庄学院","汉语言文学",50,0,50,"文史","文学 ",2,"校本部",null,null,50,50,50]
["历史学","石家庄学院","历史学",30,0,30,"文史","历史学 ",2,"校本部",null,null,30,30,30]
["酒店管理/旅游管理","石家庄学院","旅游管理",20,0,20,"经管","管理学 ",2,"校本部",null,null,20,20,20]
["社会体育指导与管理/体育教育/运动康复","石家庄学院","社会体育指导与管理",20,0,20,"体育","教育学 ",2,"校本部",null,null,20,20,20]
["数学与应用数学/信息与计算科学","石家庄学院","数学与应用数学",20,0,20,"理工","理学 ",2,"校本部",null,null,20,20,20]
["思想政治教育","石家庄学院","思想政治教育",30,0,30,"文史","法学",2,"校本部",null,null,30,30,30]
["社会体育指导与管理/体育教育/运动康复","石家庄学院","体育教育",20,0,20,"体育","教育学 ",2,"校本部",null,null,20,20,20]
["舞蹈编导/舞蹈表演/舞蹈学/艺术教育（舞蹈）/音乐学（舞蹈）","石家庄学院","舞蹈学",30,0,30,"艺术","艺术学",2,"校本部",null,null,30,30,30]
["数学与应用数学/信息与计算科学","石家庄学院","信息与计算科学",20,0,20,"理工","理学",2,"校本部",null,null,20,20,20]
["音乐表演（器乐）/音乐学（器乐）","石家庄学院","音乐学（器乐）",15,0,15,"艺术","艺术学",2,"校本部",null,null,15,15,15]
["艺术教育（声乐）/音乐表演（声乐）/音乐学（声乐）","石家庄学院","音乐学（声乐）",15,0,15,"艺术","艺术学 ",2,"校本部",null,null,15,15,15]
["翻译/商务英语/英语","石家庄学院","英语",30,0,30,"外语","文学 ",2,"校本部",null,null,30,30,30]
["应用心理学","石家庄学院","应用心理学",30,0,30,"文史","理学 ",2,"校本部",null,null,30,30,30]
["法学","唐山师范学院","法学",80,0,80,"文史","法学",2,"校本部",null,null,80,80,80]
["广播电视学/网络与新媒体/新闻学","唐山师范学院","广播电视学",40,0,40,"文史","文学",2,"校本部",null,null,40,40,40]
["汉语国际教育/汉语言文学","唐山师范学院","汉语言文学",50,0,50,"文史","文学",2,"校本部",null,null,50,50,50]
["计算机科学与技术/软件工程/数字媒体技术/网络工程/物联网工程","唐山师范学院","计算机科学与技术",50,0,50,"理工","工学",2,"校本部",null,null,50,50,50]
["历史学","唐山师范学院","历史学",50,0,50,"文史","历史学",2,"校本部",null,null,50,50,50]
["酒店管理/旅游管理","唐山师范学院","旅游管理",20,0,20,"经管","管理学",2,"校本部",null,null,20,20,20]
["产品设计/服装与服饰设计/绘画/美术学","唐山师范学院","美术学",90,0,90,"艺术","艺术学",2,"校本部",null,null,90,90,90]
["视觉传达设计","唐山师范学院","视觉传达设计",30,0,30,"艺术","艺术学",2,"校本部",null,null,30,30,30]
["数学与应用数学/信息与计算科学","唐山师范学院","数学与应用数学",40,0,40,"理工","理学",2,"校本部",null,null,40,40,40]
["思想政治教育","唐山师范学院","思想政治教育",50,0,50,"文史","法学",2,"校本部",null,null,50,50,50]
["物流管理/物流工程","唐山师范学院","物流管理",60,0,60,"经管","管理学",2,"校本部",null,null,60,60,60]
["学前教育","唐山师范学院","学前教育",170,200,370,"文史","教育学",2,"校本部",null,null,370,370,370]
["音乐表演（器乐）/音乐学（器乐）","唐山师范学院","音乐学（器乐）",10,0,10,"艺术","艺术学",2,"校本部",null,null,10,10,10]
["艺术教育（声乐）/音乐表演（声乐）/音乐学（声乐）","唐山师范学院","音乐学（声乐）",10,0,10,"艺术","艺术学",2,"校本部",null,null,10,10,10]
["舞蹈编导/舞蹈表演/舞蹈学/艺术教育（舞蹈）/音乐学（舞蹈）","唐山师范学院","音乐学（舞蹈）",10,0,10,"艺术","艺术学",2,"校本部",null,null,10,10,10]
["翻译/商务英语/英语","唐山师范学院","英语",100,0,100,"外语","文学",2,"校本部",null,null,100,100,100]
["应用心理学","唐山师范学院","应用心理学",40,0,40,"文史","理学",2,"校本部",null,null,40,40,40]
["财务管理/会计学/审计学","唐山学院","财务管理",80,null,75,"经管","管理学",2,"校本部",null,null,75,75,75]
["产品设计/服装与服饰设计/绘画/美术学","唐山学院","产品设计",35,null,35,"艺术","艺术学",2,"校本部",null,null,35,35,35]
["车辆工程/机械电子工程/机械工程/机械设计制造及其自动化/汽车服务工程","唐山学院","车辆工程",80,null,80,"理工","工学",2,"校本部",null,null,80,80,80]
["电气工程及其自动化/电气工程与智能控制/电子信息工程/轨道交通信号与控制/自动化","唐山学院","电气工程及其自动化",50,null,50,"理工","工学",2,"校本部",null,null,50,50,50]
["电子商务/国际商务","唐山学院","电子商务",40,null,0,"经管","管理学",2,"校本部",null,null,0,0,0]
["电气工程及其自动化/电气工程与智能控制/电子信息工程/轨道交通信号与控制/自动化","唐山学院","电子信息工程",50,null,50,"理工","工学",2,"校本部",null,null,50,50,50]
["法学","唐山学院","法学",80,null,80,"文史","法学",2,"校本部",null,null,80,80,80]
["产品设计/服装与服饰设计/绘画/美术学","唐山学院","服装与服饰设计",60,null,30,"艺术","艺术学",2,"校本部",null,null,30,30,30]
["广告学","唐山学院","广告学",80,null,120,"文史","文学",2,"校本部",null,null,120,120,120]
["国际经济与贸易","唐山学院","国际经济与贸易",40,null,40,"经管","经济学",2,"校本部",null,null,40,40,40]
["汉语国际教育/汉语言文学","唐山学院","汉语言文学",80,null,80,"文史","文学",2,"校本部",null,null,80,80,80]
["环境设计","唐山学院","环境设计",65,null,35,"艺术","艺术学",2,"校本部",null,null,35,35,35]
["财务管理/会计学/审计学","唐山学院","会计学",80,null,75,"经管","管理学",2,"校本部",null,null,75,75,75]
["计算机科学与技术/软件工程/数字媒体技术/网络工程/物联网工程","唐山学院","计算机科学与技术",80,null,80,"理工","工学",2,"校本部",null,null,80,80,80]
["秘书学","唐山学院","秘书学",80,null,80,"文史","文学",2,"校本部",null,null,80,80,80]
["计算机科学与技术/软件工程/数字媒体技术/网络工程/物联网工程","唐山学院","软件工程",80,null,80,"理工","工学",2,"校本部",null,null,80,80,80]
["翻译/商务英语/英语","唐山学院","商务英语",70,null,90,"外语","文学",2,"校本部",null,null,90,{"$f":"M450+L450","v":90},90]
["财务管理/会计学/审计学","唐山学院","审计学",80,null,70,"经管","管理学",2,"校本部",null,null,70,70,70]
["市场营销","唐山学院","市场营销",80,null,120,"经管","管理学",2,"校本部",null,null,120,120,120]
["视觉传达设计","唐山学院","视觉传达设计",65,null,65,"艺术","艺术学",2,"校本部",null,null,65,65,65]
["城市地下空间工程/道路桥梁与渡河工程/建筑学/勘查技术与工程/历史建筑保护工程/土木工程","唐山学院","土木工程",80,null,80,"理工","工学",2,"校本部",null,null,80,80,80]
["翻译/商务英语/英语","唐山学院","英语",70,null,90,"外语","文学",2,"校本部",null,null,90,90,90]
["电气工程及其自动化/电气工程与智能控制/电子信息工程/轨道交通信号与控制/自动化","唐山学院","自动化",50,null,50,"理工","工学",2,"校本部",null,null,50,50,50]
["表演","邢台学院","表演",5,10,{"$f":"SUM(D457:E457)","v":15},"艺术","艺术学",2,"校本部",null,null,{"$f":"F457-K457","v":15},15,15]
["财务管理/会计学/审计学","邢台学院","财务管理",60,20,80,"经管","管理学",2,"校本部",20,null,60,60,60]
["法学","邢台学院","法学",70,50,120,"文史","法学",2,"校本部",null,null,120,120,120]
["工商管理","邢台学院","工商管理",80,40,120,"经管","管理学",2,"校本部",null,null,120,120,120]
["国际经济与贸易","邢台学院","国际经济与贸易",30,50,80,"经管","经济学",2,"校本部",null,null,80,80,80]
["汉语国际教育/汉语言文学","邢台学院","汉语言文学",20,20,40,"文史","文学",2,"校本部",null,null,40,40,40]
["化学/应用化学","邢台学院","化学",10,0,10,"理工","理学",2,"校本部",null,null,10,10,10]
["环境设计","邢台学院","环境设计",20,20,40,"艺术","艺术学",2,"校本部",20,null,20,20,20]
["财务管理/会计学/审计学","邢台学院","会计学",60,20,80,"经管","管理学",2,"校本部",20,null,60,60,60]
["计算机科学与技术/软件工程/数字媒体技术/网络工程/物联网工程","邢台学院","计算机科学与技术",50,30,80,"理工","工学",2,"校本部",null,null,80,80,80]
["历史学","邢台学院","历史学",30,10,40,"文史","历史学",2,"校本部",null,60,40,100,100]
["产品设计/服装与服饰设计/绘画/美术学","邢台学院","美术学",30,10,40,"艺术","艺术学",2,"校本部",10,null,30,30,30]
["秘书学","邢台学院","秘书学",20,20,40,"文史","文学",2,"校本部",null,null,40,40,40]
["地理科学/人文地理与城乡规划","邢台学院","人文地理与城乡规划",10,0,10,"理工","理学",2,"校本部",null,null,10,10,10]
["生物科学","邢台学院","生物科学",10,0,10,"理工","理学",2,"校本部",null,null,10,10,10]
["市场营销","邢台学院","市场营销",50,30,80,"经管","管理学",2,"校本部",null,null,80,80,80]
["视觉传达设计","邢台学院","视觉传达设计",10,30,40,"艺术","艺术学",2,"校本部",30,null,10,10,10]
["数学与应用数学/信息与计算科学","邢台学院","数学与应用数学",10,0,10,"理工","理学",2,"校本部",null,null,10,10,10]
["思想政治教育","邢台学院","思想政治教育",30,50,80,"文史","法学",2,"校本部",null,null,80,80,80]
["社会体育指导与管理/体育教育/运动康复","邢台学院","体育教育",20,20,40,"体育","教育学",2,"校本部",null,null,40,40,40]
["舞蹈编导/舞蹈表演/舞蹈学/艺术教育（舞蹈）/音乐学（舞蹈）","邢台学院","舞蹈学",5,0,5,"艺术","艺术学",2,"校本部",null,null,5,5,5]
["小学教育","邢台学院","小学教育",100,0,100,"文史","教育学",2,"校本部",null,40,100,140,140]
["学前教育","邢台学院","学前教育",90,70,160,"文史","教育学",2,"校本部",null,null,160,160,160]
["音乐表演（器乐）/音乐学（器乐）","邢台学院","音乐学（器乐）",8,0,8,"艺术","艺术学",2,"校本部",null,null,8,8,8]
["艺术教育（声乐）/音乐表演（声乐）/音乐学（声乐）","邢台学院","音乐学（声乐）",12,0,12,"艺术","艺术学",2,"校本部",null,null,12,12,12]
["翻译/商务英语/英语","邢台学院","英语",60,20,80,"外语","文学",2,"校本部",null,null,80,80,80]
["电气工程及其自动化/电气工程与智能控制/电子信息工程/轨道交通信号与控制/自动化","邢台学院","自动化",10,30,40,"理工","工学",2,"校本部",null,null,40,40,40]
["播音与主持艺术","燕京理工学院","播音与主持艺术",10,5,15,"艺术","艺术学",2,"校本部",5,null,10,10,10]
["财务管理/会计学/审计学","燕京理工学院","财务管理",50,0,50,"经管","管理学",2,"校本部",null,null,50,50,50]
["电子商务/国际商务","燕京理工学院","电子商务",0,10,10,"经管","管理学",2,"校本部",10,null,0,0,0]
["法学","燕京理工学院","法学",50,70,120,"文史","法学",2,"校本部",null,null,120,120,120]
["工程管理/工程造价","燕京理工学院","工程造价",70,50,120,"经管","管理学",2,"校本部",null,null,120,120,120]
["广播电视编导/摄影","燕京理工学院","广播电视编导",10,5,15,"艺术","艺术学",2,"校本部",5,null,10,10,10]
["护理学/护理学（应用型实验班）/助产学","燕京理工学院","护理学",60,60,120,"医学","理学",2,"校本部",null,50,120,170,170]
["环境设计","燕京理工学院","环境设计",10,10,20,"艺术","艺术学",2,"校本部",null,null,20,20,20]
["财务管理/会计学/审计学","燕京理工学院","会计学",50,70,120,"经管","管理学",2,"校本部",20,null,100,100,100]
["车辆工程/机械电子工程/机械工程/机械设计制造及其自动化/汽车服务工程","燕京理工学院","机械工程",30,10,40,"理工","工学",2,"校本部",10,null,30,30,30]
["计算机科学与技术/软件工程/数字媒体技术/网络工程/物联网工程","燕京理工学院","计算机科学与技术",70,80,150,"理工","工学",2,"校本部",null,null,150,150,150]
["视觉传达设计","燕京理工学院","视觉传达设计",10,10,20,"艺术","艺术学",2,"校本部",10,null,10,10,10]
["物流管理/物流工程","燕京理工学院","物流管理",20,0,20,"经管","管理学",2,"校本部",null,null,20,20,20]
["学前教育","燕京理工学院","学前教育",50,90,140,"文史","教育学",2,"校本部",null,10,140,150,150]
["翻译/商务英语/英语","燕京理工学院","英语",50,80,130,"外语","文学",2,"校本部",null,null,130,130,130]
["材料化学/化学工程与工艺/制药工程","燕京理工学院","制药工程",10,0,10,"理工","工学",2,"校本部",null,null,10,10,10]
["地理科学/人文地理与城乡规划","张家口学院","地理科学",27,18,45,"理工","理学",2,"校本部",18,null,27,27,27]
["汉语国际教育/汉语言文学","张家口学院","汉语言文学",30,15,45,"文史","文学",2,"校本部",null,null,45,45,45]
["护理学/护理学（应用型实验班）/助产学","张家口学院","护理学",20,205,225,"医学","理学",2,"校本部",null,null,225,225,225]
["酒店管理/旅游管理","张家口学院","旅游管理",20,0,20,"经管","管理学",2,"校本部",null,null,20,20,20]
["产品设计/服装与服饰设计/绘画/美术学","张家口学院","美术学",10,0,10,"艺术","艺术学",2,"校本部",null,null,10,10,10]
["生物科学","张家口学院","生物科学",28,0,28,"理工","理学",2,"校本部",null,null,28,28,28]
["数学与应用数学/信息与计算科学","张家口学院","数学与应用数学",15,30,{"$f":"SUM(D506:E506)","v":45},"理工","理学",2,"校本部",30,null,15,15,15]
["思想政治教育","张家口学院","思想政治教育",0,45,45,"文史","法学",2,"校本部",null,null,45,45,45]
["小学教育","张家口学院","小学教育",10,35,45,"文史","教育学",2,"校本部",null,null,45,45,45]
["学前教育","张家口学院","学前教育",10,85,95,"文史","教育学",2,"校本部",null,null,95,95,95]
["药学","张家口学院","药学",0,45,45,"医学","理学",2,"校本部",null,null,45,45,45]
["医学影像技术","张家口学院","医学影像技术",0,45,45,"医学","理学 ",2,"校本部",null,null,45,45,45]
["音乐表演（器乐）/音乐学（器乐）","张家口学院","音乐学（器乐）",10,10,20,"艺术","艺术学",2,"校本部",10,null,10,10,10]
["艺术教育（声乐）/音乐表演（声乐）/音乐学（声乐）","张家口学院","音乐学（声乐）",10,10,20,"艺术","艺术学",2,"校本部",null,null,20,20,20]
["翻译/商务英语/英语","张家口学院","英语",15,15,30,"外语","文学",2,"校本部",null,null,30,{"$f":"M514+L514","v":30},30]

{"sheet":"Sheet3","index":2,"n_rows":0,"n_cols":0,"rows_kept":0}